Workbook

Sheet SAM_100_Offset DST
A1: Time stamp | B1: Hour Ending | C1: Electricity to/from grid (year 1 hourly) | (kWh) | D1: Electricity from system to load (year 1 hourly) | (kWh) | E1: System power generated | (kW) | F1: Bill load (year 1) | (kWh) | G1: Time Period | H1: Month
A2: Jan 1, 12:00 am | B2: 1 | C2: =E2-F2 -> -0.801803 | D2: =IF(E2<F2,E2,F2) -> 0 | E2: 0 | F2: 0.801803 | G2: =IF(AND(B2>8,B2<19),2,1) -> 1 | H2: 1 | K2: kWh | L2: %
A3: Jan 1, 01:00 am | B3: 2 | C3: =E3-F3 -> -0.706284 | D3: =IF(E3<F3,E3,F3) -> 0 | E3: 0 | F3: 0.706284 | G3: 1 | H3: 1 | J3: Total Load | K3: =SUM(F:F) -> 11238.68424 | L3: =K3/K$3 -> 1
A4: Jan 1, 02:00 am | B4: 3 | C4: -0.672472 | D4: 0 | E4: 0 | F4: 0.672472 | G4: 1 | H4: 1 | J4: Total On-Site | K4: =SUM(D:D) -> 4717.232227 | L4: =K4/K$3 -> 0.4197317164
A5: Jan 1, 03:00 am | B5: 4 | C5: -0.663956 | D5: 0 | E5: 0 | F5: 0.663956 | G5: 1 | H5: 1 | J5: Total Export | K5: =SUMIF(C:C,">0",C:C) -> 6520.8518 | L5: 0.5802148774
A6: Jan 1, 04:00 am | B6: 5 | C6: -0.671767 | D6: 0 | E6: 0 | F6: 0.671767 | G6: 1 | H6: 1 | J6: Total Prod | K6: =K4+K5 -> 11238.08403 | L6: 0.9999465937
A7: Jan 1, 05:00 am | B7: 6 | C7: -0.72768 | D7: 0 | E7: 0 | F7: 0.72768 | G7: 1 | H7: 1
A8: Jan 1, 06:00 am | B8: 7 | C8: -0.932425 | D8: 0 | E8: 0 | F8: 0.932425 | G8: 1 | H8: 1 | N8: Retail Rate | O8: 0.0981
A9: Jan 1, 07:00 am | B9: 8 | C9: -1.22584 | D9: 0 | E9: 0 | F9: 1.22584 | G9: 1 | H9: 1 | J9: Period 1 | K9: 6 PM - 8 AM | N9: Avoided Cost | O9: 0.03659
A10: Jan 1, 08:00 am | B10: 9 | C10: -0.832205 | D10: 0.339465 | E10: 0.339465 | F10: 1.17167 | G10: 2 | H10: 1 | J10: Period 2 | K10: 8 AM - 6 PM
A11: Jan 1, 09:00 am | B11: 10 | C11: -0.1045 | D11: 0.91266 | E11: 0.91266 | F11: 1.01716 | G11: 2 | H11: 1
A12: Jan 1, 10:00 am | B12: 11 | C12: 0.35174 | D12: 1.01169 | E12: 1.36343 | F12: 1.01169 | G12: 2 | H12: 1 | J12: Period 1 Export | K12: =SUMIFS(C:C,C:C,">0",G:G,1) -> 7.80052
A13: Jan 1, 11:00 am | B13: 12 | C13: 0.49505 | D13: 0.97432 | E13: 1.46937 | F13: 0.97432 | G13: 2 | H13: 1 | J13: Period 2 Export | K13: =SUMIFS(C:C,C:C,">0",G:G,2) -> 6513.05128 | M13: Month | N13: Period 1 Exp | O13: Period 1 On-Site | P13: Period 1 Import | Q13: Period 2 Exp | R13: Period 2 On-Site | S13: Period 2 Import | T13: Total Net Monthly Exports | V13: Total Use
A14: Jan 1, 12:00 pm | B14: 13 | C14: 0.489241 | D14: 0.932349 | E14: 1.42159 | F14: 0.932349 | G14: 2 | H14: 1 | J14: Total Export | K14: =K12+K13 -> 6520.8518 | M14: 1 | N14: =SUMIFS(C:C,C:C,">0",G:G,1,H:H,$M14) -> 0 | O14: =SUMIFS(D:D,G:G,1,H:H,M14) -> 0 | P14: =SUMIFS(C:C,C:C,"<0",G:G,1,H:H,M14) -> -469.537543 | Q14: =SUMIFS(C:C,C:C,">0",G:G,2,H:H,M14) -> 431.838288 | R14: =SUMIFS(D:D,G:G,2,H:H,M14) -> 210.6916658 | S14: =SUMIFS(C:C,C:C,"<0",G:G,2,H:H,M14) -> -100.3891682 | T14: =(N14+Q14)+(P14+S14) -> -138.0884232 | V14: =SUMIF(H:H,M14,F:F) -> 780.618377
A15: Jan 1, 01:00 pm | B15: 14 | C15: 1.537121 | D15: 0.890429 | E15: 2.42755 | F15: 0.890429 | G15: 2 | H15: 1 | M15: 2 | N15: 0 | O15: 0.2096596 | P15: -405.6220834 | Q15: 519.5615 | R15: 204.8207689 | S15: -56.01116909 | T15: =(N15+Q15)+(P15+S15) -> 57.92824751 | V15: 666.663681
A16: Jan 1, 02:00 pm | B16: 15 | C16: 0.326817 | D16: 0.881653 | E16: 1.20847 | F16: 0.881653 | G16: 2 | H16: 1 | M16: 3 | N16: 2.33533 | O16: 24.1824803 | P16: -391.4794967 | Q16: 692.392064 | R16: 230.444447 | S16: -25.23386499 | T16: 278.0140323 | V16: 671.340289
A17: Jan 1, 03:00 pm | B17: 16 | C17: -0.080626 | D17: 0.863811 | E17: 0.863811 | F17: 0.944437 | G17: 2 | H17: 1 | J17: Period 1 On-Site | K17: =SUMIF(G:G,1,D:D) -> 386.5160256 | M17: 4 | N17: 2.79575 | O17: 39.17487582 | P17: -355.3704952 | Q17: 786.477133 | R17: 257.3869082 | S17: -17.0615638 | T17: 416.840824 | V17: 668.993843
A18: Jan 1, 04:00 pm | B18: 17 | C18: 0.2211 | D18: 1.19301 | E18: 1.41411 | F18: 1.19301 | G18: 2 | H18: 1 | J18: Period 2 On-Site | K18: =SUMIF(G:G,2,D:D) -> 4330.716201 | M18: 5 | N18: 2.2793 | O18: 64.8023128 | P18: -377.8971722 | Q18: 745.979614 | R18: 352.124667 | S18: -11.777373 | T18: 358.5843688 | V18: 806.601525
A19: Jan 1, 05:00 pm | B19: 18 | C19: -1.66177 | D19: 0 | E19: 0 | F19: 1.66177 | G19: 2 | H19: 1 | J19: Total | K19: =K17+K18 -> 4717.232227 | M19: 6 | N19: 0.33503 | O19: 76.67741384 | P19: -509.4062492 | Q19: 574.335412 | R19: 552.570215 | S19: -56.575355 | T19: 8.68883784 | V19: 1195.229233
A20: Jan 1, 06:00 pm | B20: 19 | C20: -1.92415 | D20: 0 | E20: 0 | F20: 1.92415 | G20: 1 | H20: 1 | M20: 7 | N20: 0.05511 | O20: 82.45440527 | P20: -745.9469187 | Q20: 355.600535 | R20: 706.983387 | S20: -119.677408 | T20: -509.9686817 | V20: 1655.062119
A21: Jan 1, 07:00 pm | B21: 20 | C21: -1.88496 | D21: 0 | E21: 0 | F21: 1.88496 | G21: 1 | H21: 1 | M21: 8 | N21: 0 | O21: 61.7435472 | P21: -677.4641798 | Q21: 450.621867 | R21: 621.8096512 | S21: -85.0126248 | T21: -311.8549376 | V21: 1446.030003
A22: Jan 1, 08:00 pm | B22: 21 | C22: -1.7645 | D22: 0 | E22: 0 | F22: 1.7645 | G22: 1 | H22: 1 | J22: Period 1 Load | K22: =SUMIF(G:G,1,F:F) -> 6141.972194 | M22: 9 | N22: 0 | O22: 27.3264736 | P22: -519.6030254 | Q22: 536.576672 | R22: 460.0953047 | S22: -47.5420043 | T22: -30.5683577 | V22: 1054.566808
A23: Jan 1, 09:00 pm | B23: 22 | C23: -1.63288 | D23: 0 | E23: 0 | F23: 1.63288 | G23: 1 | H23: 1 | J23: Period 2 Load | K23: =SUMIF(G:G,2,F:F) -> 5096.712049 | M23: 10 | N23: 0 | O23: 5.4553202 | P23: -461.5498068 | Q23: 535.456985 | R23: 340.8367123 | S23: -61.67571274 | T23: 12.23146546 | V23: 869.517552
A24: Jan 1, 10:00 pm | B24: 23 | C24: -1.35604 | D24: 0 | E24: 0 | F24: 1.35604 | G24: 1 | H24: 1 | J24: Total | K24: =K22+K23 -> 11238.68424 | M24: 11 | N24: 0 | O24: 4.48953694 | P24: -388.0891921 | Q24: 490.609734 | R24: 193.630411 | S24: -78.375928 | T24: 24.14461394 | V24: 664.585068
A25: Jan 1, 11:00 pm | B25: 24 | C25: -1.07957 | D25: 0 | E25: 0 | F25: 1.07957 | G25: 1 | H25: 1 | M25: 12 | N25: 0 | O25: 0 | P25: -453.490006 | Q25: 393.601476 | R25: 199.3220632 | S25: -106.6636758 | T25: -166.5522058 | V25: 759.475745
A26: Jan 2, 12:00 am | B26: 1 | C26: -0.79505 | D26: 0 | E26: 0 | F26: 0.79505 | G26: 1 | H26: 1 | M26: Total | N26: =SUM(N14:N25) -> 7.80052 | O26: =SUM(O14:O25) -> 386.5160256 | P26: -5755.456168 | Q26: 6513.05128 | R26: 4330.716201 | S26: -765.9958477 | T26: =SUMIF(T14:T25,">0",T14:T25) -> 1156.43239 | V26: =SUM(V14:V25) -> 11238.68424
A27: Jan 2, 01:00 am | B27: 2 | C27: -0.693259 | D27: 0 | E27: 0 | F27: 0.693259 | G27: 1 | H27: 1
A28: Jan 2, 02:00 am | B28: 3 | C28: -0.662299 | D28: 0 | E28: 0 | F28: 0.662299 | G28: 1 | H28: 1 | O28: P 1 Retail Exports | P28: =IF(N26<(-P26),N26, 0) -> 7.80052 | R28: P 1 Retail Exports | S28: =IF(Q26<(-S26),Q26, -S26) -> 765.9958477
A29: Jan 2, 03:00 am | B29: 4 | C29: -0.655519 | D29: 0 | E29: 0 | F29: 0.655519 | G29: 1 | H29: 1 | O29: Remainder | P29: =P28-N26 -> 0 | R29: Remainder | S29: =Q26+S26 -> 5747.055432
A30: Jan 2, 04:00 am | B30: 5 | C30: -0.65456 | D30: 0 | E30: 0 | F30: 0.65456 | G30: 1 | H30: 1 | L30: Rate | M30: Value
A31: Jan 2, 05:00 am | B31: 6 | C31: -0.706284 | D31: 0 | E31: 0 | F31: 0.706284 | G31: 1 | H31: 1 | J31: Retail Rate kWh | K31: =O26+R26+P28+S28 -> 5491.028595 | L31: =O8 -> 0.0981 | M31: =K31*L31 -> 538.6699051
A32: Jan 2, 06:00 am | B32: 7 | C32: -0.901007 | D32: 0 | E32: 0 | F32: 0.901007 | G32: 1 | H32: 1 | J32: Avoided Cost kWh | K32: =S29 -> 5747.055432 | L32: =O9 -> 0.03659 | M32: =K32*L32 -> 210.2847583 | O32: Average Value
A33: Jan 2, 07:00 am | B33: 8 | C33: -1.18908 | D33: 0 | E33: 0 | F33: 1.18908 | G33: 1 | H33: 1 | L33: Total | M33: =SUM(M31:M32) -> 748.9546634 | N33: =M33/M35 -> 0.6793510436 | O33: =M33/(K31+K32) -> 0.06664433738
A34: Jan 2, 08:00 am | B34: 9 | C34: -0.959149 | D34: 0.157931 | E34: 0.157931 | F34: 1.11708 | G34: 2 | H34: 1
A35: Jan 2, 09:00 am | B35: 10 | C35: -0.58342 | D35: 0.365754 | E35: 0.365754 | F35: 0.949174 | G35: 2 | H35: 1 | J35: Full Retail | K35: =K31+K32 -> 11238.08403 | L35: =L31 -> 0.0981 | M35: =K35*L35 -> 1102.456043
A36: Jan 2, 10:00 am | B36: 11 | C36: -0.164543 | D36: 0.7795 | E36: 0.7795 | F36: 0.944043 | G36: 2 | H36: 1
A37: Jan 2, 11:00 am | B37: 12 | C37: -0.290821 | D37: 0.634713 | E37: 0.634713 | F37: 0.925534 | G37: 2 | H37: 1
A38: Jan 2, 12:00 pm | B38: 13 | C38: -0.513408 | D38: 0.380504 | E38: 0.380504 | F38: 0.893912 | G38: 2 | H38: 1 | J38: Avoided Cost All Exports | L38: Rate | M38: Value
A39: Jan 2, 01:00 pm | B39: 14 | C39: -0.596376 | D39: 0.259652 | E39: 0.259652 | F39: 0.856028 | G39: 2 | H39: 1 | J39: Retail Offset | K39: =O26+R26 -> 4717.232227 | L39: =O8 -> 0.0981 | M39: =K39*L39 -> 462.7604815
A40: Jan 2, 02:00 pm | B40: 15 | C40: -0.461653 | D40: 0.390277 | E40: 0.390277 | F40: 0.85193 | G40: 2 | H40: 1 | J40: Exports | K40: =K14 -> 6520.8518 | L40: =O9 -> 0.03659 | M40: =K40*L40 -> 238.5979674
A41: Jan 2, 03:00 pm | B41: 16 | C41: -0.365062 | D41: 0.551962 | E41: 0.551962 | F41: 0.917024 | G41: 2 | H41: 1 | M41: =SUM(M39:M40) -> 701.3584488 | N41: =M41/M35 -> 0.6361781526
A42: Jan 2, 04:00 pm | B42: 17 | C42: -0.982875 | D42: 0.176845 | E42: 0.176845 | F42: 1.15972 | G42: 2 | H42: 1
A43: Jan 2, 05:00 pm | B43: 18 | C43: -1.61996 | D43: 0 | E43: 0 | F43: 1.61996 | G43: 2 | H43: 1 | J43: Monthly Avoided Cost | L43: Rate | M43: Value
A44: Jan 2, 06:00 pm | B44: 19 | C44: -1.88343 | D44: 0 | E44: 0 | F44: 1.88343 | G44: 1 | H44: 1 | J44: Retail Offset | K44: =K6-K45 -> 10081.65164 | L44: =L39 -> 0.0981 | M44: =K44*L44 -> 989.0100256
A45: Jan 2, 07:00 pm | B45: 20 | C45: -1.83667 | D45: 0 | E45: 0 | F45: 1.83667 | G45: 1 | H45: 1 | J45: Exports | K45: =T26 -> 1156.43239 | L45: =L40 -> 0.03659 | M45: =K45*L45 -> 42.31386115
A46: Jan 2, 08:00 pm | B46: 21 | C46: -1.7118 | D46: 0 | E46: 0 | F46: 1.7118 | G46: 1 | H46: 1 | M46: =SUM(M44:M45) -> 1031.323887 | N46: =M46/M35 -> 0.9354784649
A47: Jan 2, 09:00 pm | B47: 22 | C47: -1.57311 | D47: 0 | E47: 0 | F47: 1.57311 | G47: 1 | H47: 1
A48: Jan 2, 10:00 pm | B48: 23 | C48: -1.29676 | D48: 0 | E48: 0 | F48: 1.29676 | G48: 1 | H48: 1
A49: Jan 2, 11:00 pm | B49: 24 | C49: -1.02701 | D49: 0 | E49: 0 | F49: 1.02701 | G49: 1 | H49: 1
A50: Jan 3, 12:00 am | B50: 1 | C50: -0.756447 | D50: 0 | E50: 0 | F50: 0.756447 | G50: 1 | H50: 1
A51: Jan 3, 01:00 am | B51: 2 | C51: -0.651464 | D51: 0 | E51: 0 | F51: 0.651464 | G51: 1 | H51: 1
A52: Jan 3, 02:00 am | B52: 3 | C52: -0.613389 | D52: 0 | E52: 0 | F52: 0.613389 | G52: 1 | H52: 1
A53: Jan 3, 03:00 am | B53: 4 | C53: -0.604521 | D53: 0 | E53: 0 | F53: 0.604521 | G53: 1 | H53: 1
A54: Jan 3, 04:00 am | B54: 5 | C54: -0.607269 | D54: 0 | E54: 0 | F54: 0.607269 | G54: 1 | H54: 1
A55: Jan 3, 05:00 am | B55: 6 | C55: -0.663933 | D55: 0 | E55: 0 | F55: 0.663933 | G55: 1 | H55: 1
A56: Jan 3, 06:00 am | B56: 7 | C56: -0.858593 | D56: 0 | E56: 0 | F56: 0.858593 | G56: 1 | H56: 1
A57: Jan 3, 07:00 am | B57: 8 | C57: -1.1523 | D57: 0 | E57: 0 | F57: 1.1523 | G57: 1 | H57: 1
A58: Jan 3, 08:00 am | B58: 9 | C58: -1.09008 | D58: 0 | E58: 0 | F58: 1.09008 | G58: 2 | H58: 1
A59: Jan 3, 09:00 am | B59: 10 | C59: -0.265677 | D59: 0.670292 | E59: 0.670292 | F59: 0.935969 | G59: 2 | H59: 1
A60: Jan 3, 10:00 am | B60: 11 | C60: -0.385281 | D60: 0.565783 | E60: 0.565783 | F60: 0.951064 | G60: 2 | H60: 1
A61: Jan 3, 11:00 am | B61: 12 | C61: -0.020453 | D61: 0.920018 | E61: 0.920018 | F61: 0.940471 | G61: 2 | H61: 1
A62: Jan 3, 12:00 pm | B62: 13 | C62: 0.475162 | D62: 0.911148 | E62: 1.38631 | F62: 0.911148 | G62: 2 | H62: 1
A63: Jan 3, 01:00 pm | B63: 14 | C63: 0.990816 | D63: 0.880654 | E63: 1.87147 | F63: 0.880654 | G63: 2 | H63: 1
A64: Jan 3, 02:00 pm | B64: 15 | C64: -0.212961 | D64: 0.663463 | E64: 0.663463 | F64: 0.876424 | G64: 2 | H64: 1
A65: Jan 3, 03:00 pm | B65: 16 | C65: -0.118103 | D65: 0.820333 | E65: 0.820333 | F65: 0.938436 | G65: 2 | H65: 1
A66: Jan 3, 04:00 pm | B66: 17 | C66: -1.013516 | D66: 0.163064 | E66: 0.163064 | F66: 1.17658 | G66: =IF(AND(B66>8,B66<19),2,1) -> 2 | H66: 1
A67: Jan 3, 05:00 pm | B67: 18 | C67: =E67-F67 -> -1.63608 | D67: =IF(E67<F67,E67,F67) -> 0 | E67: 0 | F67: 1.63608 | G67: 2 | H67: 1
A68: Jan 3, 06:00 pm | B68: 19 | C68: -1.89723 | D68: 0 | E68: 0 | F68: 1.89723 | G68: 1 | H68: 1
A69: Jan 3, 07:00 pm | B69: 20 | C69: -1.84356 | D69: 0 | E69: 0 | F69: 1.84356 | G69: 1 | H69: 1
A70: Jan 3, 08:00 pm | B70: 21 | C70: -1.71568 | D70: 0 | E70: 0 | F70: 1.71568 | G70: 1 | H70: 1
A71: Jan 3, 09:00 pm | B71: 22 | C71: -1.57773 | D71: 0 | E71: 0 | F71: 1.57773 | G71: 1 | H71: 1
A72: Jan 3, 10:00 pm | B72: 23 | C72: -1.29844 | D72: 0 | E72: 0 | F72: 1.29844 | G72: 1 | H72: 1
A73: Jan 3, 11:00 pm | B73: 24 | C73: -1.02393 | D73: 0 | E73: 0 | F73: 1.02393 | G73: 1 | H73: 1
A74: Jan 4, 12:00 am | B74: 1 | C74: -0.751922 | D74: 0 | E74: 0 | F74: 0.751922 | G74: 1 | H74: 1
A75: Jan 4, 01:00 am | B75: 2 | C75: -0.645336 | D75: 0 | E75: 0 | F75: 0.645336 | G75: 1 | H75: 1
A76: Jan 4, 02:00 am | B76: 3 | C76: -0.60843 | D76: 0 | E76: 0 | F76: 0.60843 | G76: 1 | H76: 1
A77: Jan 4, 03:00 am | B77: 4 | C77: -0.600506 | D77: 0 | E77: 0 | F77: 0.600506 | G77: 1 | H77: 1
A78: Jan 4, 04:00 am | B78: 5 | C78: -0.602231 | D78: 0 | E78: 0 | F78: 0.602231 | G78: 1 | H78: 1
A79: Jan 4, 05:00 am | B79: 6 | C79: -0.657434 | D79: 0 | E79: 0 | F79: 0.657434 | G79: 1 | H79: 1
A80: Jan 4, 06:00 am | B80: 7 | C80: -0.854535 | D80: 0 | E80: 0 | F80: 0.854535 | G80: 1 | H80: 1
A81: Jan 4, 07:00 am | B81: 8 | C81: -1.14867 | D81: 0 | E81: 0 | F81: 1.14867 | G81: 1 | H81: 1
A82: Jan 4, 08:00 am | B82: 9 | C82: -1.0118287 | D82: 0.0766713 | E82: 0.0766713 | F82: 1.0885 | G82: 2 | H82: 1
A83: Jan 4, 09:00 am | B83: 10 | C83: -0.615358 | D83: 0.321477 | E83: 0.321477 | F83: 0.936835 | G83: 2 | H83: 1
A84: Jan 4, 10:00 am | B84: 11 | C84: -0.500497 | D84: 0.445608 | E84: 0.445608 | F84: 0.946105 | G84: 2 | H84: 1
A85: Jan 4, 11:00 am | B85: 12 | C85: -0.351855 | D85: 0.578489 | E85: 0.578489 | F85: 0.930344 | G85: 2 | H85: 1
A86: Jan 4, 12:00 pm | B86: 13 | C86: 0.346812 | D86: 0.884738 | E86: 1.23155 | F86: 0.884738 | G86: 2 | H86: 1
A87: Jan 4, 01:00 pm | B87: 14 | C87: 0.160758 | D87: 0.845262 | E87: 1.00602 | F87: 0.845262 | G87: 2 | H87: 1
A88: Jan 4, 02:00 pm | B88: 15 | C88: 0.662035 | D88: 0.841825 | E88: 1.50386 | F88: 0.841825 | G88: 2 | H88: 1
A89: Jan 4, 03:00 pm | B89: 16 | C89: -0.028775 | D89: 0.879202 | E89: 0.879202 | F89: 0.907977 | G89: 2 | H89: 1
A90: Jan 4, 04:00 pm | B90: 17 | C90: -0.841423 | D90: 0.309857 | E90: 0.309857 | F90: 1.15128 | G90: 2 | H90: 1
A91: Jan 4, 05:00 pm | B91: 18 | C91: -1.60453 | D91: 0 | E91: 0 | F91: 1.60453 | G91: 2 | H91: 1
A92: Jan 4, 06:00 pm | B92: 19 | C92: -1.87306 | D92: 0 | E92: 0 | F92: 1.87306 | G92: 1 | H92: 1
A93: Jan 4, 07:00 pm | B93: 20 | C93: -1.82159 | D93: 0 | E93: 0 | F93: 1.82159 | G93: 1 | H93: 1
A94: Jan 4, 08:00 pm | B94: 21 | C94: -1.69485 | D94: 0 | E94: 0 | F94: 1.69485 | G94: 1 | H94: 1
A95: Jan 4, 09:00 pm | B95: 22 | C95: -1.55841 | D95: 0 | E95: 0 | F95: 1.55841 | G95: 1 | H95: 1
A96: Jan 4, 10:00 pm | B96: 23 | C96: -1.28144 | D96: 0 | E96: 0 | F96: 1.28144 | G96: 1 | H96: 1
A97: Jan 4, 11:00 pm | B97: 24 | C97: -1.00792 | D97: 0 | E97: 0 | F97: 1.00792 | G97: 1 | H97: 1
A98: Jan 5, 12:00 am | B98: 1 | C98: -0.737251 | D98: 0 | E98: 0 | F98: 0.737251 | G98: 1 | H98: 1
A99: Jan 5, 01:00 am | B99: 2 | C99: -0.631865 | D99: 0 | E99: 0 | F99: 0.631865 | G99: 1 | H99: 1
A100: Jan 5, 02:00 am | B100: 3 | C100: -0.594006 | D100: 0 | E100: 0 | F100: 0.594006 | G100: 1 | H100: 1
A101: Jan 5, 03:00 am | B101: 4 | C101: -0.584695 | D101: 0 | E101: 0 | F101: 0.584695 | G101: 1 | H101: 1
A102: Jan 5, 04:00 am | B102: 5 | C102: -0.586336 | D102: 0 | E102: 0 | F102: 0.586336 | G102: 1 | H102: 1
A103: Jan 5, 05:00 am | B103: 6 | C103: -0.639141 | D103: 0 | E103: 0 | F103: 0.639141 | G103: 1 | H103: 1
A104: Jan 5, 06:00 am | B104: 7 | C104: -0.837958 | D104: 0 | E104: 0 | F104: 0.837958 | G104: 1 | H104: 1
A105: Jan 5, 07:00 am | B105: 8 | C105: -1.16639 | D105: 0 | E105: 0 | F105: 1.16639 | G105: 1 | H105: 1
A106: Jan 5, 08:00 am | B106: 9 | C106: 0.34596 | D106: 1.08469 | E106: 1.43065 | F106: 1.08469 | G106: 2 | H106: 1
A107: Jan 5, 09:00 am | B107: 10 | C107: 2.552193 | D107: 0.932187 | E107: 3.48438 | F107: 0.932187 | G107: 2 | H107: 1
A108: Jan 5, 10:00 am | B108: 11 | C108: 3.921884 | D108: 0.917856 | E108: 4.83974 | F108: 0.917856 | G108: 2 | H108: 1
A109: Jan 5, 11:00 am | B109: 12 | C109: 4.676993 | D109: 0.918517 | E109: 5.59551 | F109: 0.918517 | G109: 2 | H109: 1
A110: Jan 5, 12:00 pm | B110: 13 | C110: 4.948444 | D110: 0.893496 | E110: 5.84194 | F110: 0.893496 | G110: 2 | H110: 1
A111: Jan 5, 01:00 pm | B111: 14 | C111: 4.742702 | D111: 0.873828 | E111: 5.61653 | F111: 0.873828 | G111: 2 | H111: 1
A112: Jan 5, 02:00 pm | B112: 15 | C112: 4.028651 | D112: 0.869849 | E112: 4.8985 | F112: 0.869849 | G112: 2 | H112: 1
A113: Jan 5, 03:00 pm | B113: 16 | C113: 2.714744 | D113: 0.930126 | E113: 3.64487 | F113: 0.930126 | G113: 2 | H113: 1
A114: Jan 5, 04:00 pm | B114: 17 | C114: 0.60173 | D114: 1.17079 | E114: 1.77252 | F114: 1.17079 | G114: 2 | H114: 1
A115: Jan 5, 05:00 pm | B115: 18 | C115: -1.63411 | D115: 0 | E115: 0 | F115: 1.63411 | G115: 2 | H115: 1
A116: Jan 5, 06:00 pm | B116: 19 | C116: -1.89605 | D116: 0 | E116: 0 | F116: 1.89605 | G116: 1 | H116: 1
A117: Jan 5, 07:00 pm | B117: 20 | C117: -1.83659 | D117: 0 | E117: 0 | F117: 1.83659 | G117: 1 | H117: 1
A118: Jan 5, 08:00 pm | B118: 21 | C118: -1.7054 | D118: 0 | E118: 0 | F118: 1.7054 | G118: 1 | H118: 1
A119: Jan 5, 09:00 pm | B119: 22 | C119: -1.5668 | D119: 0 | E119: 0 | F119: 1.5668 | G119: 1 | H119: 1
A120: Jan 5, 10:00 pm | B120: 23 | C120: -1.28705 | D120: 0 | E120: 0 | F120: 1.28705 | G120: 1 | H120: 1
A121: Jan 5, 11:00 pm | B121: 24 | C121: -1.01379 | D121: 0 | E121: 0 | F121: 1.01379 | G121: 1 | H121: 1
A122: Jan 6, 12:00 am | B122: 1 | C122: -0.743244 | D122: 0 | E122: 0 | F122: 0.743244 | G122: 1 | H122: 1
A123: Jan 6, 01:00 am | B123: 2 | C123: -0.632917 | D123: 0 | E123: 0 | F123: 0.632917 | G123: 1 | H123: 1
A124: Jan 6, 02:00 am | B124: 3 | C124: -0.597087 | D124: 0 | E124: 0 | F124: 0.597087 | G124: 1 | H124: 1
A125: Jan 6, 03:00 am | B125: 4 | C125: -0.593337 | D125: 0 | E125: 0 | F125: 0.593337 | G125: 1 | H125: 1
A126: Jan 6, 04:00 am | B126: 5 | C126: -0.599459 | D126: 0 | E126: 0 | F126: 0.599459 | G126: 1 | H126: 1
A127: Jan 6, 05:00 am | B127: 6 | C127: -0.656192 | D127: 0 | E127: 0 | F127: 0.656192 | G127: 1 | H127: 1
A128: Jan 6, 06:00 am | B128: 7 | C128: -0.890663 | D128: 0 | E128: 0 | F128: 0.890663 | G128: 1 | H128: 1
A129: Jan 6, 07:00 am | B129: 8 | C129: -1.15488 | D129: 0 | E129: 0 | F129: 1.15488 | G129: 1 | H129: 1
A130: Jan 6, 08:00 am | B130: 9 | C130: -0.742856 | D130: 0.323344 | E130: 0.323344 | F130: 1.0662 | G130: =IF(AND(B130>8,B130<19),2,1) -> 2 | H130: 1
A131: Jan 6, 09:00 am | B131: 10 | C131: =E131-F131 -> -0.523537 | D131: =IF(E131<F131,E131,F131) -> 0.375066 | E131: 0.375066 | F131: 0.898603 | G131: 2 | H131: 1
A132: Jan 6, 10:00 am | B132: 11 | C132: -0.086573 | D132: 0.811846 | E132: 0.811846 | F132: 0.898419 | G132: 2 | H132: 1
A133: Jan 6, 11:00 am | B133: 12 | C133: 0.867072 | D133: 0.881908 | E133: 1.74898 | F133: 0.881908 | G133: 2 | H133: 1
A134: Jan 6, 12:00 pm | B134: 13 | C134: 0.553023 | D134: 0.845587 | E134: 1.39861 | F134: 0.845587 | G134: 2 | H134: 1
A135: Jan 6, 01:00 pm | B135: 14 | C135: 0.304495 | D135: 0.821975 | E135: 1.12647 | F135: 0.821975 | G135: 2 | H135: 1
A136: Jan 6, 02:00 pm | B136: 15 | C136: 0.331063 | D136: 0.822177 | E136: 1.15324 | F136: 0.822177 | G136: 2 | H136: 1
A137: Jan 6, 03:00 pm | B137: 16 | C137: -0.666827 | D137: 0.219959 | E137: 0.219959 | F137: 0.886786 | G137: 2 | H137: 1
A138: Jan 6, 04:00 pm | B138: 17 | C138: -1.12464 | D138: 0 | E138: 0 | F138: 1.12464 | G138: 2 | H138: 1
A139: Jan 6, 05:00 pm | B139: 18 | C139: -1.58234 | D139: 0 | E139: 0 | F139: 1.58234 | G139: 2 | H139: 1
A140: Jan 6, 06:00 pm | B140: 19 | C140: -1.85482 | D140: 0 | E140: 0 | F140: 1.85482 | G140: 1 | H140: 1
A141: Jan 6, 07:00 pm | B141: 20 | C141: -1.81245 | D141: 0 | E141: 0 | F141: 1.81245 | G141: 1 | H141: 1
A142: Jan 6, 08:00 pm | B142: 21 | C142: -1.69102 | D142: 0 | E142: 0 | F142: 1.69102 | G142: 1 | H142: 1
A143: Jan 6, 09:00 pm | B143: 22 | C143: -1.55626 | D143: 0 | E143: 0 | F143: 1.55626 | G143: 1 | H143: 1
A144: Jan 6, 10:00 pm | B144: 23 | C144: -1.28675 | D144: 0 | E144: 0 | F144: 1.28675 | G144: 1 | H144: 1
A145: Jan 6, 11:00 pm | B145: 24 | C145: -1.01706 | D145: 0 | E145: 0 | F145: 1.01706 | G145: 1 | H145: 1
A146: Jan 7, 12:00 am | B146: 1 | C146: -0.763039 | D146: 0 | E146: 0 | F146: 0.763039 | G146: 1 | H146: 1
A147: Jan 7, 01:00 am | B147: 2 | C147: -0.655663 | D147: 0 | E147: 0 | F147: 0.655663 | G147: 1 | H147: 1
A148: Jan 7, 02:00 am | B148: 3 | C148: -0.617439 | D148: 0 | E148: 0 | F148: 0.617439 | G148: 1 | H148: 1
A149: Jan 7, 03:00 am | B149: 4 | C149: -0.611868 | D149: 0 | E149: 0 | F149: 0.611868 | G149: 1 | H149: 1
A150: Jan 7, 04:00 am | B150: 5 | C150: -0.614635 | D150: 0 | E150: 0 | F150: 0.614635 | G150: 1 | H150: 1
A151: Jan 7, 05:00 am | B151: 6 | C151: -0.669819 | D151: 0 | E151: 0 | F151: 0.669819 | G151: 1 | H151: 1
A152: Jan 7, 06:00 am | B152: 7 | C152: -0.905591 | D152: 0 | E152: 0 | F152: 0.905591 | G152: 1 | H152: 1
A153: Jan 7, 07:00 am | B153: 8 | C153: -1.1843 | D153: 0 | E153: 0 | F153: 1.1843 | G153: 1 | H153: 1
A154: Jan 7, 08:00 am | B154: 9 | C154: -1.0759303 | D154: 0.0414697 | E154: 0.0414697 | F154: 1.1174 | G154: 2 | H154: 1
A155: Jan 7, 09:00 am | B155: 10 | C155: -0.73674 | D155: 0.218875 | E155: 0.218875 | F155: 0.955615 | G155: 2 | H155: 1
A156: Jan 7, 10:00 am | B156: 11 | C156: -0.435064 | D156: 0.516634 | E156: 0.516634 | F156: 0.951698 | G156: 2 | H156: 1
A157: Jan 7, 11:00 am | B157: 12 | C157: -0.399891 | D157: 0.527605 | E157: 0.527605 | F157: 0.927496 | G157: 2 | H157: 1
A158: Jan 7, 12:00 pm | B158: 13 | C158: 2.368675 | D158: 0.895205 | E158: 3.26388 | F158: 0.895205 | G158: 2 | H158: 1
A159: Jan 7, 01:00 pm | B159: 14 | C159: 2.682539 | D159: 0.867211 | E159: 3.54975 | F159: 0.867211 | G159: 2 | H159: 1
A160: Jan 7, 02:00 pm | B160: 15 | C160: 2.159078 | D160: 0.862782 | E160: 3.02186 | F160: 0.862782 | G160: 2 | H160: 1
A161: Jan 7, 03:00 pm | B161: 16 | C161: -0.519156 | D161: 0.406089 | E161: 0.406089 | F161: 0.925245 | G161: 2 | H161: 1
A162: Jan 7, 04:00 pm | B162: 17 | C162: -0.75375 | D162: 0.40816 | E162: 0.40816 | F162: 1.16191 | G162: 2 | H162: 1
A163: Jan 7, 05:00 pm | B163: 18 | C163: -1.61613 | D163: 0 | E163: 0 | F163: 1.61613 | G163: 2 | H163: 1
A164: Jan 7, 06:00 pm | B164: 19 | C164: -1.88116 | D164: 0 | E164: 0 | F164: 1.88116 | G164: 1 | H164: 1
A165: Jan 7, 07:00 pm | B165: 20 | C165: -1.84238 | D165: 0 | E165: 0 | F165: 1.84238 | G165: 1 | H165: 1
A166: Jan 7, 08:00 pm | B166: 21 | C166: -1.7238 | D166: 0 | E166: 0 | F166: 1.7238 | G166: 1 | H166: 1
A167: Jan 7, 09:00 pm | B167: 22 | C167: -1.59372 | D167: 0 | E167: 0 | F167: 1.59372 | G167: 1 | H167: 1
A168: Jan 7, 10:00 pm | B168: 23 | C168: -1.31488 | D168: 0 | E168: 0 | F168: 1.31488 | G168: 1 | H168: 1
A169: Jan 7, 11:00 pm | B169: 24 | C169: -1.02985 | D169: 0 | E169: 0 | F169: 1.02985 | G169: 1 | H169: 1
A170: Jan 8, 12:00 am | B170: 1 | C170: -0.751688 | D170: 0 | E170: 0 | F170: 0.751688 | G170: 1 | H170: 1
A171: Jan 8, 01:00 am | B171: 2 | C171: -0.644233 | D171: 0 | E171: 0 | F171: 0.644233 | G171: 1 | H171: 1
A172: Jan 8, 02:00 am | B172: 3 | C172: -0.609199 | D172: 0 | E172: 0 | F172: 0.609199 | G172: 1 | H172: 1
A173: Jan 8, 03:00 am | B173: 4 | C173: -0.604366 | D173: 0 | E173: 0 | F173: 0.604366 | G173: 1 | H173: 1
A174: Jan 8, 04:00 am | B174: 5 | C174: -0.600399 | D174: 0 | E174: 0 | F174: 0.600399 | G174: 1 | H174: 1
A175: Jan 8, 05:00 am | B175: 6 | C175: -0.654359 | D175: 0 | E175: 0 | F175: 0.654359 | G175: 1 | H175: 1
A176: Jan 8, 06:00 am | B176: 7 | C176: -0.880069 | D176: 0 | E176: 0 | F176: 0.880069 | G176: 1 | H176: 1
A177: Jan 8, 07:00 am | B177: 8 | C177: -1.15142 | D177: 0 | E177: 0 | F177: 1.15142 | G177: 1 | H177: 1
A178: Jan 8, 08:00 am | B178: 9 | C178: -0.473036 | D178: 0.602454 | E178: 0.602454 | F178: 1.07549 | G178: 2 | H178: 1
A179: Jan 8, 09:00 am | B179: 10 | C179: 1.595903 | D179: 0.922767 | E179: 2.51867 | F179: 0.922767 | G179: 2 | H179: 1
A180: Jan 8, 10:00 am | B180: 11 | C180: 4.257077 | D180: 0.930033 | E180: 5.18711 | F180: 0.930033 | G180: 2 | H180: 1
A181: Jan 8, 11:00 am | B181: 12 | C181: 4.26491 | D181: 0.92328 | E181: 5.18819 | F181: 0.92328 | G181: 2 | H181: 1
A182: Jan 8, 12:00 pm | B182: 13 | C182: 4.500125 | D182: 0.895205 | E182: 5.39533 | F182: 0.895205 | G182: 2 | H182: 1
A183: Jan 8, 01:00 pm | B183: 14 | C183: 4.320219 | D183: 0.867211 | E183: 5.18743 | F183: 0.867211 | G183: 2 | H183: 1
A184: Jan 8, 02:00 pm | B184: 15 | C184: 3.629888 | D184: 0.862782 | E184: 4.49267 | F184: 0.862782 | G184: 2 | H184: 1
A185: Jan 8, 03:00 pm | B185: 16 | C185: 1.796485 | D185: 0.925245 | E185: 2.72173 | F185: 0.925245 | G185: 2 | H185: 1
A186: Jan 8, 04:00 pm | B186: 17 | C186: 0.81626 | D186: 1.16191 | E186: 1.97817 | F186: 1.16191 | G186: 2 | H186: 1
A187: Jan 8, 05:00 pm | B187: 18 | C187: -1.61515 | D187: 0 | E187: 0 | F187: 1.61515 | G187: 2 | H187: 1
A188: Jan 8, 06:00 pm | B188: 19 | C188: -1.88137 | D188: 0 | E188: 0 | F188: 1.88137 | G188: 1 | H188: 1
A189: Jan 8, 07:00 pm | B189: 20 | C189: -1.83486 | D189: 0 | E189: 0 | F189: 1.83486 | G189: 1 | H189: 1
A190: Jan 8, 08:00 pm | B190: 21 | C190: -1.70907 | D190: 0 | E190: 0 | F190: 1.70907 | G190: 1 | H190: 1
A191: Jan 8, 09:00 pm | B191: 22 | C191: -1.5747 | D191: 0 | E191: 0 | F191: 1.5747 | G191: 1 | H191: 1
A192: Jan 8, 10:00 pm | B192: 23 | C192: -1.29677 | D192: 0 | E192: 0 | F192: 1.29677 | G192: 1 | H192: 1
A193: Jan 8, 11:00 pm | B193: 24 | C193: -1.01316 | D193: 0 | E193: 0 | F193: 1.01316 | G193: 1 | H193: 1
A194: Jan 9, 12:00 am | B194: 1 | C194: -0.733267 | D194: 0 | E194: 0 | F194: 0.733267 | G194: =IF(AND(B194>8,B194<19),2,1) -> 1 | H194: 1
A195: Jan 9, 01:00 am | B195: 2 | C195: =E195-F195 -> -0.632684 | D195: =IF(E195<F195,E195,F195) -> 0 | E195: 0 | F195: 0.632684 | G195: 1 | H195: 1
A196: Jan 9, 02:00 am | B196: 3 | C196: -0.59616 | D196: 0 | E196: 0 | F196: 0.59616 | G196: 1 | H196: 1
A197: Jan 9, 03:00 am | B197: 4 | C197: -0.593074 | D197: 0 | E197: 0 | F197: 0.593074 | G197: 1 | H197: 1
A198: Jan 9, 04:00 am | B198: 5 | C198: -0.598008 | D198: 0 | E198: 0 | F198: 0.598008 | G198: 1 | H198: 1
A199: Jan 9, 05:00 am | B199: 6 | C199: -0.654342 | D199: 0 | E199: 0 | F199: 0.654342 | G199: 1 | H199: 1
A200: Jan 9, 06:00 am | B200: 7 | C200: -0.851612 | D200: 0 | E200: 0 | F200: 0.851612 | G200: 1 | H200: 1
... 8561 more rows

Sheet 100_Offset KYP Load Shape
A1: Time stamp | B1: Hour Ending | C1: Scaled System Power | D1: Electricity to/from grid (year 1 hourly) | (kWh) | E1: Electricity from system to load (year 1 hourly) | (kWh) | F1: Bill load (year 1) | (kWh) | G1: Time Period | H1: Month
A2: Jan 1, 12:00 am | B2: 1 | C2: 0 | D2: =C2-F2 -> -1.921641827 | E2: =IF(C2<F2,C2,F2) -> 0 | F2: 1.921641827 | G2: =IF(AND(B2>8,B2<19),2,1) -> 1 | H2: 1 | K2: kWh | L2: %
A3: Jan 1, 01:00 am | B3: 2 | C3: 0 | D3: =C3-F3 -> -1.891818643 | E3: =IF(C3<F3,C3,F3) -> 0 | F3: 1.891818643 | G3: 1 | H3: 1 | J3: Total Load | K3: =SUM(F:F) -> 14465.56889 | L3: =K3/K$3 -> 1 | N3: Prod Scalar | O3: 1.287191736
A4: Jan 1, 02:00 am | B4: 3 | C4: 0 | D4: -1.766584158 | E4: 0 | F4: 1.766584158 | G4: 1 | H4: 1 | J4: Total On-Site | K4: =SUM(E:E) -> 5546.532594 | L4: =K4/K$3 -> 0.3834299664
A5: Jan 1, 03:00 am | B5: 4 | C5: 0 | D5: -1.852004647 | E5: 0 | F5: 1.852004647 | G5: 1 | H5: 1 | J5: Total Export | K5: =SUMIF(D:D,">0",D:D) -> 8919.036299 | L5: 0.6165700336
A6: Jan 1, 04:00 am | B6: 5 | C6: 0 | D6: -1.755922198 | E6: 0 | F6: 1.755922198 | G6: 1 | H6: 1 | J6: Total Prod | K6: =K4+K5 -> 14465.56889 | L6: 1
A7: Jan 1, 05:00 am | B7: 6 | C7: 0 | D7: -1.815860033 | E7: 0 | F7: 1.815860033 | G7: 1 | H7: 1
A8: Jan 1, 06:00 am | B8: 7 | C8: 0 | D8: -1.802422881 | E8: 0 | F8: 1.802422881 | G8: 1 | H8: 1 | N8: Retail Rate | O8: 0.0981
A9: Jan 1, 07:00 am | B9: 8 | C9: 0 | D9: -1.869478703 | E9: 0 | F9: 1.869478703 | G9: 1 | H9: 1 | J9: Period 1 | K9: 6 PM - 8 AM | N9: Avoided Cost | O9: 0.03659
A10: Jan 1, 08:00 am | B10: 9 | C10: 0.4369565428 | D10: -1.534662706 | E10: 0.4369565428 | F10: 1.971619248 | G10: 2 | H10: 1 | J10: Period 2 | K10: 8 AM - 6 PM
A11: Jan 1, 09:00 am | B11: 10 | C11: 1.17476841 | D11: -0.828539886 | E11: 1.17476841 | F11: 2.003308296 | G11: 2 | H11: 1
A12: Jan 1, 10:00 am | B12: 11 | C12: 1.754995829 | D12: 0.00273311774 | E12: 1.752262712 | F12: 1.752262712 | G12: 2 | H12: 1 | J12: Period 1 Export | K12: =SUMIFS(D:D,D:D,">0",G:G,1) -> 136.6922828
A13: Jan 1, 11:00 am | B13: 12 | C13: 1.891360922 | D13: 0.07813016888 | E13: 1.813230753 | F13: 1.813230753 | G13: 2 | H13: 1 | J13: Period 2 Export | K13: =SUMIFS(D:D,D:D,">0",G:G,2) -> 8782.344016 | M13: Month | N13: Period 1 Exp | O13: Period 1 On-Site | P13: Period 1 Import | Q13: Retail Export P1 | R13: Period 2 Exp | S13: Period 2 On-Site | T13: Period 2 Import | U13: Retail Exports P2 | V13: Total Net Monthly Exports | X13: Total Use | Y13: Greater Than 1100
A14: Jan 1, 12:00 pm | B14: 13 | C14: 1.829858901 | D14: 0.07420611536 | E14: 1.755652785 | F14: 1.755652785 | G14: 2 | H14: 1 | J14: Total Export | K14: =K12+K13 -> 8919.036299 | M14: 1 | N14: =SUMIFS(D:D,D:D,">0",G:G,1,H:H,$M14) -> 0 | O14: =SUMIFS(E:E,G:G,1,H:H,M14) -> 0 | P14: =SUMIFS(D:D,D:D,"<0",G:G,1,H:H,M14) -> -910.0665998 | Q14: =IF(N14>-P14,-P14,N14) -> 0 | R14: =SUMIFS(D:D,D:D,">0",G:G,2,H:H,M14) -> 421.4636047 | S14: =SUMIFS(E:E,G:G,2,H:H,M14) -> 405.5956422 | T14: =SUMIFS(D:D,D:D,"<0",G:G,2,H:H,M14) -> -206.595087 | U14: =IF(R14>-T14,-T14,R14) -> 206.595087 | V14: =(N14+R14)+(P14+T14) -> -695.1980821 | X14: =SUMIF(H:H,M14,F:F) -> 1522.257329 | Y14: =X14-1100 -> 422.2573291
A15: Jan 1, 01:00 pm | B15: 14 | C15: 3.1247223 | D15: 1.529506264 | E15: 1.595216036 | F15: 1.595216036 | G15: 2 | H15: 1 | M15: 2 | N15: 0 | O15: 0.2698721046 | P15: -859.1776467 | Q15: =IF(N15>-P15,-P15,N15) -> 0 | R15: 515.9074026 | S15: 416.511468 | T15: -153.1369415 | U15: =IF(R15>-T15,-T15,R15) -> 153.1369415 | V15: =(N15+R15)+(P15+T15) -> -496.4071856 | X15: =SUMIF(H:H,M15,F:F) -> 1429.095928 | Y15: =X15-1100 -> 329.0959283
A16: Jan 1, 02:00 pm | B16: 15 | C16: 1.555532598 | D16: -0.0184381969 | E16: 1.555532598 | F16: 1.573970795 | G16: 2 | H16: 1 | M16: 3 | N16: 1.768738016 | O16: 22.4496983 | P16: -646.607571 | Q16: 1.768738016 | R16: 794.1913837 | S16: 403.5912173 | T16: -74.52460733 | U16: 74.52460733 | V16: 74.8279434 | X16: 1147.173094 | Y16: 47.17309397
A17: Jan 1, 03:00 pm | B17: 16 | C17: 1.111890381 | D17: -0.5380458181 | E17: 1.111890381 | F17: 1.649936199 | G17: 2 | H17: 1 | J17: Period 1 On-Site | K17: =SUMIF(G:G,1,E:E) -> 359.9907237 | M17: 4 | N17: 11.62379183 | O17: 39.87479162 | P17: -457.678915 | Q17: 11.62379183 | R17: 1004.186083 | S17: 341.992744 | T17: -23.63087424 | U17: 23.63087424 | V17: 534.5000857 | X17: 863.1773249 | Y17: -236.8226751
A18: Jan 1, 04:00 pm | B18: 17 | C18: 1.820230706 | D18: -0.02992262052 | E18: 1.820230706 | F18: 1.850153327 | G18: 2 | H18: 1 | J18: Period 2 On-Site | K18: =SUMIF(G:G,2,E:E) -> 5186.541871 | M18: 5 | N18: 32.13962361 | O18: 58.84321931 | P18: -442.471655 | Q18: 32.13962361 | R18: 972.8252785 | S18: 436.0095325 | T18: -19.87023582 | U18: 19.87023582 | V18: 542.6230113 | X18: 957.1946427 | Y18: -142.8053573
A19: Jan 1, 05:00 pm | B19: 18 | C19: 0 | D19: -2.243835449 | E19: 0 | F19: 2.243835449 | G19: 2 | H19: 1 | J19: Total | K19: =K17+K18 -> 5546.532594 | M19: 6 | N19: 33.43038384 | O19: 63.20485465 | P19: -471.0339601 | Q19: 33.43038384 | R19: 985.969331 | S19: 467.0688227 | T19: -32.49954898 | U19: 32.49954898 | V19: 515.8662058 | X19: 1033.807186 | Y19: -66.19281358
A20: Jan 1, 06:00 pm | B20: 19 | C20: 0 | D20: -2.166351795 | E20: 0 | F20: 2.166351795 | G20: 1 | H20: 1 | M20: 7 | N20: 19.57846984 | O20: 70.99323241 | P20: -637.11132 | Q20: 19.57846984 | R20: 750.2294411 | S20: 633.1536666 | T20: -42.84101193 | U20: 42.84101193 | V20: 89.855579 | X20: 1384.099231 | Y20: 284.0992309
A21: Jan 1, 07:00 pm | B21: 20 | C21: 0 | D21: -2.210764408 | E21: 0 | F21: 2.210764408 | G21: 1 | H21: 1 | M21: 8 | N21: 15.64439178 | O21: 51.78948054 | P21: -590.3298022 | Q21: 15.64439178 | R21: 832.0615237 | S21: 560.4053759 | T21: -45.75679698 | U21: 45.75679698 | V21: 211.6193163 | X21: 1248.281456 | Y21: 148.2814556
A22: Jan 1, 08:00 pm | B22: 21 | C22: 0 | D22: -2.341851234 | E22: 0 | F22: 2.341851234 | G22: 1 | H22: 1 | J22: Period 1 Load | K22: =SUMIF(G:G,1,F:F) -> 8137.213403 | M22: 9 | N22: 15.77131392 | O22: 26.61509813 | P22: -538.2829923 | Q22: 15.77131392 | R22: 800.010682 | S22: 475.6852494 | T22: -60.13581802 | U22: 60.13581802 | V22: 217.3631856 | X22: 1100.719158 | Y22: 0.719157815
A23: Jan 1, 09:00 pm | B23: 22 | C23: 0 | D23: -2.367712975 | E23: 0 | F23: 2.367712975 | G23: 1 | H23: 1 | J23: Period 2 Load | K23: =SUMIF(G:G,2,F:F) -> 6328.355491 | M23: 10 | N23: 6.735569955 | O23: 20.17158182 | P23: -467.8321134 | Q23: 6.735569955 | R23: 811.057125 | S23: 297.0157721 | T23: -83.32976188 | U23: 83.32976188 | V23: 266.6308197 | X23: 868.3492292 | Y23: -231.6507708
A24: Jan 1, 10:00 pm | B24: 23 | C24: 0 | D24: -2.223733902 | E24: 0 | F24: 2.223733902 | G24: 1 | H24: 1 | J24: Total | K24: =K22+K23 -> 14465.56889 | M24: 11 | N24: 0 | O24: 5.77889485 | P24: -861.7444469 | Q24: 0 | R24: 505.0288928 | S24: 375.7193676 | T24: -170.702059 | U24: 170.702059 | V24: -527.4176132 | X24: 1413.944768 | Y24: 313.9447684
A25: Jan 1, 11:00 pm | B25: 24 | C25: 0 | D25: -2.053428888 | E25: 0 | F25: 2.053428888 | G25: 1 | H25: 1 | M25: 12 | N25: 0 | O25: 0 | P25: -894.8856564 | Q25: 0 | R25: 389.4132678 | S25: 373.7930123 | T25: -228.7908772 | U25: 228.7908772 | V25: -734.2632658 | X25: 1497.469546 | Y25: 397.4695458
A26: Jan 2, 12:00 am | B26: 1 | C26: 0 | D26: -2.14429903 | E26: 0 | F26: 2.14429903 | G26: 1 | H26: 1 | M26: Total | N26: =SUM(N14:N25) -> 136.6922828 | O26: =SUM(O14:O25) -> 359.9907237 | P26: -7777.222679 | Q26: =SUM(Q14:Q25) -> 136.6922828 | R26: 8782.344016 | S26: 5186.541871 | T26: -1141.81362 | U26: =SUM(U14:U25) -> 1141.81362 | V26: =SUMIF(V14:V25,">0",V14:V25) -> 2453.286147 | X26: =SUM(X14:X25) -> 14465.56889
A27: Jan 2, 01:00 am | B27: 2 | C27: 0 | D27: -2.143558264 | E27: 0 | F27: 2.143558264 | G27: 1 | H27: 1 | P27: P1 Avoided Cost | Q27: =Q26-N26 -> 0 | T27: P2 Avoided Cost | U27: =R26-U26 -> 7640.530396
A28: Jan 2, 02:00 am | B28: 3 | C28: 0 | D28: -2.216009855 | E28: 0 | F28: 2.216009855 | G28: 1 | H28: 1 | AA28: Rate
A29: Jan 2, 03:00 am | B29: 4 | C29: 0 | D29: -2.175160646 | E29: 0 | F29: 2.175160646 | G29: 1 | H29: 1 | Y29: Winter | Z29: =Y25+Y14+Y15 -> 1148.822803 | AA29: 0.09801 | AB29: =Z29*AA29 -> 112.5961229
A30: Jan 2, 04:00 am | B30: 5 | C30: 0 | D30: -2.411977768 | E30: 0 | F30: 2.411977768 | G30: 1 | H30: 1 | L30: Rate | M30: Value
A31: Jan 2, 05:00 am | B31: 6 | C31: 0 | D31: -2.495609283 | E31: 0 | F31: 2.495609283 | G31: 1 | H31: 1 | J31: Retail Rate kWh | K31: =O26+Q26+S26+U26 -> 6825.038497 | L31: =O8 -> 0.0981 | M31: =K31*L31 -> 669.5362766
A32: Jan 2, 06:00 am | B32: 7 | C32: 0 | D32: -2.694185972 | E32: 0 | F32: 2.694185972 | G32: 1 | H32: 1 | J32: Avoided Cost kWh | K32: =Q27+U27 -> 7640.530396 | L32: =O9 -> 0.03659 | M32: =K32*L32 -> 279.5670072 | O32: Average Value
A33: Jan 2, 07:00 am | B33: 8 | C33: 0 | D33: -2.531752586 | E33: 0 | F33: 2.531752586 | G33: 1 | H33: 1 | L33: Total | M33: =SUM(M31:M32) -> 949.1032838 | N33: =M33/M35 -> 0.6688195366 | O33: =M33/(K31+K32) -> 0.06561119654
A34: Jan 2, 08:00 am | B34: 9 | C34: 0.2032874781 | D34: -2.132050638 | E34: 0.2032874781 | F34: 2.335338116 | G34: 2 | H34: 1
A35: Jan 2, 09:00 am | B35: 10 | C35: 0.4707955264 | D35: -1.727775917 | E35: 0.4707955264 | F35: 2.198571444 | G35: 2 | H35: 1 | J35: Full Retail | K35: =K31+K32 -> 14465.56889 | L35: =L31 -> 0.0981 | M35: =K35*L35 -> 1419.072308
A36: Jan 2, 10:00 am | B36: 11 | C36: 1.003365959 | D36: -1.108117377 | E36: 1.003365959 | F36: 2.111483335 | G36: 2 | H36: 1
A37: Jan 2, 11:00 am | B37: 12 | C37: 0.8169973286 | D37: -1.103079638 | E37: 0.8169973286 | F37: 1.920076966 | G37: 2 | H37: 1
A38: Jan 2, 12:00 pm | B38: 13 | C38: 0.4897816045 | D38: -1.298567666 | E38: 0.4897816045 | F38: 1.788349271 | G38: 2 | H38: 1 | J38: Avoided Cost All Exports | L38: Rate | M38: Value
A39: Jan 2, 01:00 pm | B39: 14 | C39: 0.3342219088 | D39: -1.313625982 | E39: 0.3342219088 | F39: 1.647847891 | G39: 2 | H39: 1 | J39: Retail Offset | K39: =O26+S26 -> 5546.532594 | L39: =O8 -> 0.0981 | M39: =K39*L39 -> 544.1148475
A40: Jan 2, 02:00 pm | B40: 15 | C40: 0.5023613293 | D40: -0.9907420556 | E40: 0.5023613293 | F40: 1.493103385 | G40: 2 | H40: 1 | J40: Exports | K40: =K14 -> 8919.036299 | L40: =O9 -> 0.03659 | M40: =K40*L40 -> 326.3475382
A41: Jan 2, 03:00 pm | B41: 16 | C41: 0.7104809252 | D41: -0.7731881173 | E41: 0.7104809252 | F41: 1.483669043 | G41: 2 | H41: 1 | M41: =SUM(M39:M40) -> 870.4623857 | N41: =M41/M35 -> 0.6134024183
A42: Jan 2, 04:00 pm | B42: 17 | C42: 0.2276334226 | D42: -1.282923156 | E42: 0.2276334226 | F42: 1.510556579 | G42: 2 | H42: 1
A43: Jan 2, 05:00 pm | B43: 18 | C43: 0 | D43: -1.612792492 | E43: 0 | F43: 1.612792492 | G43: 2 | H43: 1 | J43: Monthly Avoided Cost | L43: Rate | M43: Value
A44: Jan 2, 06:00 pm | B44: 19 | C44: 0 | D44: -1.659015059 | E44: 0 | F44: 1.659015059 | G44: 1 | H44: 1 | J44: Retail Offset | K44: =K6-K45 -> 12012.28275 | L44: =L39 -> 0.0981 | M44: =K44*L44 -> 1178.404937
A45: Jan 2, 07:00 pm | B45: 20 | C45: 0 | D45: -1.652105689 | E45: 0 | F45: 1.652105689 | G45: 1 | H45: 1 | J45: Exports | K45: =V26 -> 2453.286147 | L45: =L40 -> 0.03659 | M45: =K45*L45 -> 89.76574011
A46: Jan 2, 08:00 pm | B46: 21 | C46: 0 | D46: -1.794888735 | E46: 0 | F46: 1.794888735 | G46: 1 | H46: 1 | M46: =SUM(M44:M45) -> 1268.170678 | N46: =M46/M35 -> 0.8936617747
A47: Jan 2, 09:00 pm | B47: 22 | C47: 0 | D47: -1.731456399 | E47: 0 | F47: 1.731456399 | G47: 1 | H47: 1
A48: Jan 2, 10:00 pm | B48: 23 | C48: 0 | D48: -1.648922563 | E48: 0 | F48: 1.648922563 | G48: 1 | H48: 1 | J48: Avoided Cost All Exports | L48: Rate | M48: Value
A49: Jan 2, 11:00 pm | B49: 24 | C49: 0 | D49: -1.420910716 | E49: 0 | F49: 1.420910716 | G49: 1 | H49: 1 | J49: Retail Offset | K49: 5546.532594 | L49: =L31 -> 0.0981 | M49: =K49*L49 -> 544.1148475
A50: Jan 3, 12:00 am | B50: 1 | C50: 0 | D50: -1.261825681 | E50: 0 | F50: 1.261825681 | G50: 1 | H50: 1 | J50: Exports | K50: 8919.036299 | L50: =0.08342 -> 0.08342 | M50: =K50*L50 -> 744.026008
A51: Jan 3, 01:00 am | B51: 2 | C51: 0 | D51: -1.171312332 | E51: 0 | F51: 1.171312332 | G51: 1 | H51: 1 | M51: =SUM(M49:M50) -> 1288.140856 | N51: =M51/M35 -> 0.9077344741
A52: Jan 3, 02:00 am | B52: 3 | C52: 0 | D52: -1.189435005 | E52: 0 | F52: 1.189435005 | G52: 1 | H52: 1
A53: Jan 3, 03:00 am | B53: 4 | C53: 0 | D53: -1.167808175 | E53: 0 | F53: 1.167808175 | G53: 1 | H53: 1
A54: Jan 3, 04:00 am | B54: 5 | C54: 0 | D54: -1.185160279 | E54: 0 | F54: 1.185160279 | G54: 1 | H54: 1
A55: Jan 3, 05:00 am | B55: 6 | C55: 0 | D55: -1.451008558 | E55: 0 | F55: 1.451008558 | G55: 1 | H55: 1
A56: Jan 3, 06:00 am | B56: 7 | C56: 0 | D56: -1.463390946 | E56: 0 | F56: 1.463390946 | G56: 1 | H56: 1
A57: Jan 3, 07:00 am | B57: 8 | C57: 0 | D57: -1.277432323 | E57: 0 | F57: 1.277432323 | G57: 1 | H57: 1
A58: Jan 3, 08:00 am | B58: 9 | C58: 0 | D58: -1.297157526 | E58: 0 | F58: 1.297157526 | G58: 2 | H58: 1
A59: Jan 3, 09:00 am | B59: 10 | C59: 0.8627943234 | D59: -0.6078698201 | E59: 0.8627943234 | F59: 1.470664144 | G59: 2 | H59: 1
A60: Jan 3, 10:00 am | B60: 11 | C60: 0.7282712022 | D60: -0.7009380301 | E60: 0.7282712022 | F60: 1.429209232 | G60: 2 | H60: 1
A61: Jan 3, 11:00 am | B61: 12 | C61: 1.184239567 | D61: -0.2630831592 | E61: 1.184239567 | F61: 1.447322726 | G61: 2 | H61: 1
A62: Jan 3, 12:00 pm | B62: 13 | C62: 1.784446776 | D62: 0.5947341326 | E62: 1.189712644 | F62: 1.189712644 | G62: 2 | H62: 1
A63: Jan 3, 01:00 pm | B63: 14 | C63: 2.408940719 | D63: 1.215382384 | E63: 1.193558335 | F63: 1.193558335 | G63: 2 | H63: 1
A64: Jan 3, 02:00 pm | B64: 15 | C64: 0.8540040911 | D64: -0.4718251764 | E64: 0.8540040911 | F64: 1.325829268 | G64: 2 | H64: 1
A65: Jan 3, 03:00 pm | B65: 16 | C65: 1.055925859 | D65: -0.4771704547 | E65: 1.055925859 | F65: 1.533096313 | G65: 2 | H65: 1
A66: Jan 3, 04:00 pm | B66: 17 | C66: 0.2098946333 | D66: -1.400879049 | E66: 0.2098946333 | F66: 1.610773683 | G66: =IF(AND(B66>8,B66<19),2,1) -> 2 | H66: 1
A67: Jan 3, 05:00 pm | B67: 18 | C67: 0 | D67: =C67-F67 -> -1.495085955 | E67: =IF(C67<F67,C67,F67) -> 0 | F67: 1.495085955 | G67: 2 | H67: 1
A68: Jan 3, 06:00 pm | B68: 19 | C68: 0 | D68: -1.57267046 | E68: 0 | F68: 1.57267046 | G68: 1 | H68: 1
A69: Jan 3, 07:00 pm | B69: 20 | C69: 0 | D69: -1.568771005 | E69: 0 | F69: 1.568771005 | G69: 1 | H69: 1
A70: Jan 3, 08:00 pm | B70: 21 | C70: 0 | D70: -1.555306435 | E70: 0 | F70: 1.555306435 | G70: 1 | H70: 1
A71: Jan 3, 09:00 pm | B71: 22 | C71: 0 | D71: -1.470074058 | E71: 0 | F71: 1.470074058 | G71: 1 | H71: 1
A72: Jan 3, 10:00 pm | B72: 23 | C72: 0 | D72: -1.283458829 | E72: 0 | F72: 1.283458829 | G72: 1 | H72: 1
A73: Jan 3, 11:00 pm | B73: 24 | C73: 0 | D73: -1.218154788 | E73: 0 | F73: 1.218154788 | G73: 1 | H73: 1
A74: Jan 4, 12:00 am | B74: 1 | C74: 0 | D74: -1.108533144 | E74: 0 | F74: 1.108533144 | G74: 1 | H74: 1
A75: Jan 4, 01:00 am | B75: 2 | C75: 0 | D75: -1.110169053 | E75: 0 | F75: 1.110169053 | G75: 1 | H75: 1
A76: Jan 4, 02:00 am | B76: 3 | C76: 0 | D76: -1.12609911 | E76: 0 | F76: 1.12609911 | G76: 1 | H76: 1
A77: Jan 4, 03:00 am | B77: 4 | C77: 0 | D77: -1.042174459 | E77: 0 | F77: 1.042174459 | G77: 1 | H77: 1
A78: Jan 4, 04:00 am | B78: 5 | C78: 0 | D78: -1.067975879 | E78: 0 | F78: 1.067975879 | G78: 1 | H78: 1
A79: Jan 4, 05:00 am | B79: 6 | C79: 0 | D79: -1.2040205 | E79: 0 | F79: 1.2040205 | G79: 1 | H79: 1
A80: Jan 4, 06:00 am | B80: 7 | C80: 0 | D80: -1.09939301 | E80: 0 | F80: 1.09939301 | G80: 1 | H80: 1
A81: Jan 4, 07:00 am | B81: 8 | C81: 0 | D81: -1.321445942 | E81: 0 | F81: 1.321445942 | G81: 1 | H81: 1
A82: Jan 4, 08:00 am | B82: 9 | C82: 0.09869066378 | D82: -1.372132624 | E82: 0.09869066378 | F82: 1.470823288 | G82: 2 | H82: 1
A83: Jan 4, 09:00 am | B83: 10 | C83: 0.4138025379 | D83: -1.178601828 | E83: 0.4138025379 | F83: 1.592404366 | G83: 2 | H83: 1
A84: Jan 4, 10:00 am | B84: 11 | C84: 0.5735829353 | D84: -1.138607931 | E84: 0.5735829353 | F84: 1.712190866 | G84: 2 | H84: 1
A85: Jan 4, 11:00 am | B85: 12 | C85: 0.7446262604 | D85: -0.9829809898 | E85: 0.7446262604 | F85: 1.72760725 | G85: 2 | H85: 1
A86: Jan 4, 12:00 pm | B86: 13 | C86: 1.585240983 | D86: -0.1009883651 | E86: 1.585240983 | F86: 1.686229348 | G86: 2 | H86: 1
A87: Jan 4, 01:00 pm | B87: 14 | C87: 1.294940631 | D87: -0.4029619295 | E87: 1.294940631 | F87: 1.69790256 | G87: 2 | H87: 1
A88: Jan 4, 02:00 pm | B88: 15 | C88: 1.935756165 | D88: 0.091130811 | E88: 1.844625354 | F88: 1.844625354 | G88: 2 | H88: 1
A89: Jan 4, 03:00 pm | B89: 16 | C89: 1.131701549 | D89: -0.9783884682 | E89: 1.131701549 | F89: 2.110090017 | G89: 2 | H89: 1
A90: Jan 4, 04:00 pm | B90: 17 | C90: 0.3988453699 | D90: -1.871388977 | E90: 0.3988453699 | F90: 2.270234346 | G90: 2 | H90: 1
A91: Jan 4, 05:00 pm | B91: 18 | C91: 0 | D91: -2.280438185 | E91: 0 | F91: 2.280438185 | G91: 2 | H91: 1
A92: Jan 4, 06:00 pm | B92: 19 | C92: 0 | D92: -2.240595579 | E92: 0 | F92: 2.240595579 | G92: 1 | H92: 1
A93: Jan 4, 07:00 pm | B93: 20 | C93: 0 | D93: -2.304302692 | E93: 0 | F93: 2.304302692 | G93: 1 | H93: 1
A94: Jan 4, 08:00 pm | B94: 21 | C94: 0 | D94: -2.248477936 | E94: 0 | F94: 2.248477936 | G94: 1 | H94: 1
A95: Jan 4, 09:00 pm | B95: 22 | C95: 0 | D95: -2.273502588 | E95: 0 | F95: 2.273502588 | G95: 1 | H95: 1
A96: Jan 4, 10:00 pm | B96: 23 | C96: 0 | D96: -2.234202147 | E96: 0 | F96: 2.234202147 | G96: 1 | H96: 1
A97: Jan 4, 11:00 pm | B97: 24 | C97: 0 | D97: -2.096155643 | E97: 0 | F97: 2.096155643 | G97: 1 | H97: 1
A98: Jan 5, 12:00 am | B98: 1 | C98: 0 | D98: -2.096177816 | E98: 0 | F98: 2.096177816 | G98: 1 | H98: 1
A99: Jan 5, 01:00 am | B99: 2 | C99: 0 | D99: -2.031726122 | E99: 0 | F99: 2.031726122 | G99: 1 | H99: 1
A100: Jan 5, 02:00 am | B100: 3 | C100: 0 | D100: -1.973752022 | E100: 0 | F100: 1.973752022 | G100: 1 | H100: 1
A101: Jan 5, 03:00 am | B101: 4 | C101: 0 | D101: -1.98777616 | E101: 0 | F101: 1.98777616 | G101: 1 | H101: 1
A102: Jan 5, 04:00 am | B102: 5 | C102: 0 | D102: -2.065725327 | E102: 0 | F102: 2.065725327 | G102: 1 | H102: 1
A103: Jan 5, 05:00 am | B103: 6 | C103: 0 | D103: -2.072462559 | E103: 0 | F103: 2.072462559 | G103: 1 | H103: 1
A104: Jan 5, 06:00 am | B104: 7 | C104: 0 | D104: -2.02759552 | E104: 0 | F104: 2.02759552 | G104: 1 | H104: 1
A105: Jan 5, 07:00 am | B105: 8 | C105: 0 | D105: -2.176156998 | E105: 0 | F105: 2.176156998 | G105: 1 | H105: 1
A106: Jan 5, 08:00 am | B106: 9 | C106: 1.841520858 | D106: -0.3609894991 | E106: 1.841520858 | F106: 2.202510357 | G106: 2 | H106: 1
A107: Jan 5, 09:00 am | B107: 10 | C107: 4.485065143 | D107: 2.185429256 | E107: 2.299635887 | F107: 2.299635887 | G107: 2 | H107: 1
A108: Jan 5, 10:00 am | B108: 11 | C108: 6.229673335 | D108: 4.000524708 | E108: 2.229148626 | F108: 2.229148626 | G108: 2 | H108: 1
A109: Jan 5, 11:00 am | B109: 12 | C109: 7.202494233 | D109: 4.920947402 | E109: 2.281546831 | F109: 2.281546831 | G109: 2 | H109: 1
A110: Jan 5, 12:00 pm | B110: 13 | C110: 7.519696893 | D110: 5.293920697 | E110: 2.225776196 | F110: 2.225776196 | G110: 2 | H110: 1
A111: Jan 5, 01:00 pm | B111: 14 | C111: 7.229551004 | D111: 5.279044913 | E111: 1.950506091 | F111: 1.950506091 | G111: 2 | H111: 1
A112: Jan 5, 02:00 pm | B112: 15 | C112: 6.305308721 | D112: 4.399622343 | E112: 1.905686378 | F112: 1.905686378 | G112: 2 | H112: 1
A113: Jan 5, 03:00 pm | B113: 16 | C113: 4.691646545 | D113: 2.719809382 | E113: 1.971837163 | F113: 1.971837163 | G113: 2 | H113: 1
A114: Jan 5, 04:00 pm | B114: 17 | C114: 2.281573097 | D114: 0.4186871447 | E114: 1.862885952 | F114: 1.862885952 | G114: 2 | H114: 1
A115: Jan 5, 05:00 pm | B115: 18 | C115: 0 | D115: -2.090997458 | E115: 0 | F115: 2.090997458 | G115: 2 | H115: 1
A116: Jan 5, 06:00 pm | B116: 19 | C116: 0 | D116: -2.298616648 | E116: 0 | F116: 2.298616648 | G116: 1 | H116: 1
A117: Jan 5, 07:00 pm | B117: 20 | C117: 0 | D117: -2.25664711 | E117: 0 | F117: 2.25664711 | G117: 1 | H117: 1
A118: Jan 5, 08:00 pm | B118: 21 | C118: 0 | D118: -2.455014229 | E118: 0 | F118: 2.455014229 | G118: 1 | H118: 1
A119: Jan 5, 09:00 pm | B119: 22 | C119: 0 | D119: -2.582866192 | E119: 0 | F119: 2.582866192 | G119: 1 | H119: 1
A120: Jan 5, 10:00 pm | B120: 23 | C120: 0 | D120: -2.503009796 | E120: 0 | F120: 2.503009796 | G120: 1 | H120: 1
A121: Jan 5, 11:00 pm | B121: 24 | C121: 0 | D121: -2.219379663 | E121: 0 | F121: 2.219379663 | G121: 1 | H121: 1
A122: Jan 6, 12:00 am | B122: 1 | C122: 0 | D122: -2.010175705 | E122: 0 | F122: 2.010175705 | G122: 1 | H122: 1
A123: Jan 6, 01:00 am | B123: 2 | C123: 0 | D123: -2.010724306 | E123: 0 | F123: 2.010724306 | G123: 1 | H123: 1
A124: Jan 6, 02:00 am | B124: 3 | C124: 0 | D124: -2.063667059 | E124: 0 | F124: 2.063667059 | G124: 1 | H124: 1
A125: Jan 6, 03:00 am | B125: 4 | C125: 0 | D125: -2.246314049 | E125: 0 | F125: 2.246314049 | G125: 1 | H125: 1
A126: Jan 6, 04:00 am | B126: 5 | C126: 0 | D126: -2.141613722 | E126: 0 | F126: 2.141613722 | G126: 1 | H126: 1
A127: Jan 6, 05:00 am | B127: 6 | C127: 0 | D127: -2.392683744 | E127: 0 | F127: 2.392683744 | G127: 1 | H127: 1
A128: Jan 6, 06:00 am | B128: 7 | C128: 0 | D128: -2.719731808 | E128: 0 | F128: 2.719731808 | G128: 1 | H128: 1
A129: Jan 6, 07:00 am | B129: 8 | C129: 0 | D129: -2.574972868 | E129: 0 | F129: 2.574972868 | G129: 1 | H129: 1
A130: Jan 6, 08:00 am | B130: 9 | C130: 0.4162057248 | D130: -2.173011938 | E130: 0.4162057248 | F130: 2.589217663 | G130: =IF(AND(B130>8,B130<19),2,1) -> 2 | H130: 1
A131: Jan 6, 09:00 am | B131: 10 | C131: 0.4827818558 | D131: =C131-F131 -> -1.955387147 | E131: =IF(C131<F131,C131,F131) -> 0.4827818558 | F131: 2.438169003 | G131: 2 | H131: 1
A132: Jan 6, 10:00 am | B132: 11 | C132: 1.045001462 | D132: -1.076013609 | E132: 1.045001462 | F132: 2.121015072 | G132: 2 | H132: 1
A133: Jan 6, 11:00 am | B133: 12 | C133: 2.251272603 | D133: 0.2914948904 | E133: 1.959777713 | F133: 1.959777713 | G133: 2 | H133: 1
A134: Jan 6, 12:00 pm | B134: 13 | C134: 1.800279235 | D134: 0.02905759683 | E134: 1.771221638 | F134: 1.771221638 | G134: 2 | H134: 1
A135: Jan 6, 01:00 pm | B135: 14 | C135: 1.449982875 | D135: 0.01286136488 | E135: 1.437121511 | F135: 1.437121511 | G135: 2 | H135: 1
A136: Jan 6, 02:00 pm | B136: 15 | C136: 1.484440998 | D136: -0.1327797612 | E136: 1.484440998 | F136: 1.617220759 | G136: 2 | H136: 1
A137: Jan 6, 03:00 pm | B137: 16 | C137: 0.2831294072 | D137: -1.488533543 | E137: 0.2831294072 | F137: 1.771662951 | G137: 2 | H137: 1
A138: Jan 6, 04:00 pm | B138: 17 | C138: 0 | D138: -1.787421584 | E138: 0 | F138: 1.787421584 | G138: 2 | H138: 1
A139: Jan 6, 05:00 pm | B139: 18 | C139: 0 | D139: -2.042441607 | E139: 0 | F139: 2.042441607 | G139: 2 | H139: 1
A140: Jan 6, 06:00 pm | B140: 19 | C140: 0 | D140: -2.397086143 | E140: 0 | F140: 2.397086143 | G140: 1 | H140: 1
A141: Jan 6, 07:00 pm | B141: 20 | C141: 0 | D141: -2.472785234 | E141: 0 | F141: 2.472785234 | G141: 1 | H141: 1
A142: Jan 6, 08:00 pm | B142: 21 | C142: 0 | D142: -2.603280544 | E142: 0 | F142: 2.603280544 | G142: 1 | H142: 1
A143: Jan 6, 09:00 pm | B143: 22 | C143: 0 | D143: -2.601782322 | E143: 0 | F143: 2.601782322 | G143: 1 | H143: 1
A144: Jan 6, 10:00 pm | B144: 23 | C144: 0 | D144: -2.63021183 | E144: 0 | F144: 2.63021183 | G144: 1 | H144: 1
A145: Jan 6, 11:00 pm | B145: 24 | C145: 0 | D145: -2.469908953 | E145: 0 | F145: 2.469908953 | G145: 1 | H145: 1
A146: Jan 7, 12:00 am | B146: 1 | C146: 0 | D146: -2.584920883 | E146: 0 | F146: 2.584920883 | G146: 1 | H146: 1
A147: Jan 7, 01:00 am | B147: 2 | C147: 0 | D147: -2.611963511 | E147: 0 | F147: 2.611963511 | G147: 1 | H147: 1
A148: Jan 7, 02:00 am | B148: 3 | C148: 0 | D148: -2.409427643 | E148: 0 | F148: 2.409427643 | G148: 1 | H148: 1
A149: Jan 7, 03:00 am | B149: 4 | C149: 0 | D149: -2.358869314 | E149: 0 | F149: 2.358869314 | G149: 1 | H149: 1
A150: Jan 7, 04:00 am | B150: 5 | C150: 0 | D150: -2.448318005 | E150: 0 | F150: 2.448318005 | G150: 1 | H150: 1
A151: Jan 7, 05:00 am | B151: 6 | C151: 0 | D151: -2.4567945 | E151: 0 | F151: 2.4567945 | G151: 1 | H151: 1
A152: Jan 7, 06:00 am | B152: 7 | C152: 0 | D152: -2.664077997 | E152: 0 | F152: 2.664077997 | G152: 1 | H152: 1
A153: Jan 7, 07:00 am | B153: 8 | C153: 0 | D153: -2.659658194 | E153: 0 | F153: 2.659658194 | G153: 1 | H153: 1
A154: Jan 7, 08:00 am | B154: 9 | C154: 0.05337945515 | D154: -2.483671746 | E154: 0.05337945515 | F154: 2.537051201 | G154: 2 | H154: 1
A155: Jan 7, 09:00 am | B155: 10 | C155: 0.2817340913 | D155: -2.157391923 | E155: 0.2817340913 | F155: 2.439126015 | G155: 2 | H155: 1
A156: Jan 7, 10:00 am | B156: 11 | C156: 0.6650070156 | D156: -1.74256287 | E156: 0.6650070156 | F156: 2.407569885 | G156: 2 | H156: 1
A157: Jan 7, 11:00 am | B157: 12 | C157: 0.6791287961 | D157: -1.532794565 | E157: 0.6791287961 | F157: 2.211923361 | G157: 2 | H157: 1
A158: Jan 7, 12:00 pm | B158: 13 | C158: 4.201239365 | D158: 2.138347643 | E158: 2.062891722 | F158: 2.062891722 | G158: 2 | H158: 1
A159: Jan 7, 01:00 pm | B159: 14 | C159: 4.569208867 | D159: 2.763339526 | E159: 1.805869341 | F159: 1.805869341 | G159: 2 | H159: 1
A160: Jan 7, 02:00 pm | B160: 15 | C160: 3.889713221 | D160: 2.066863589 | E160: 1.822849631 | F160: 1.822849631 | G160: 2 | H160: 1
A161: Jan 7, 03:00 pm | B161: 16 | C161: 0.5227144051 | D161: -1.530111999 | E161: 0.5227144051 | F161: 2.052826405 | G161: 2 | H161: 1
A162: Jan 7, 04:00 pm | B162: 17 | C162: 0.5253801792 | D162: -1.485289529 | E162: 0.5253801792 | F162: 2.010669708 | G162: 2 | H162: 1
A163: Jan 7, 05:00 pm | B163: 18 | C163: 0 | D163: -2.305369616 | E163: 0 | F163: 2.305369616 | G163: 2 | H163: 1
A164: Jan 7, 06:00 pm | B164: 19 | C164: 0 | D164: -2.292615414 | E164: 0 | F164: 2.292615414 | G164: 1 | H164: 1
A165: Jan 7, 07:00 pm | B165: 20 | C165: 0 | D165: -2.330332518 | E165: 0 | F165: 2.330332518 | G165: 1 | H165: 1
A166: Jan 7, 08:00 pm | B166: 21 | C166: 0 | D166: -2.501562357 | E166: 0 | F166: 2.501562357 | G166: 1 | H166: 1
A167: Jan 7, 09:00 pm | B167: 22 | C167: 0 | D167: -2.718243599 | E167: 0 | F167: 2.718243599 | G167: 1 | H167: 1
A168: Jan 7, 10:00 pm | B168: 23 | C168: 0 | D168: -2.408123493 | E168: 0 | F168: 2.408123493 | G168: 1 | H168: 1
A169: Jan 7, 11:00 pm | B169: 24 | C169: 0 | D169: -2.372967482 | E169: 0 | F169: 2.372967482 | G169: 1 | H169: 1
A170: Jan 8, 12:00 am | B170: 1 | C170: 0 | D170: -2.300379276 | E170: 0 | F170: 2.300379276 | G170: 1 | H170: 1
A171: Jan 8, 01:00 am | B171: 2 | C171: 0 | D171: -2.376763582 | E171: 0 | F171: 2.376763582 | G171: 1 | H171: 1
A172: Jan 8, 02:00 am | B172: 3 | C172: 0 | D172: -2.218024254 | E172: 0 | F172: 2.218024254 | G172: 1 | H172: 1
A173: Jan 8, 03:00 am | B173: 4 | C173: 0 | D173: -2.235563517 | E173: 0 | F173: 2.235563517 | G173: 1 | H173: 1
A174: Jan 8, 04:00 am | B174: 5 | C174: 0 | D174: -2.290710211 | E174: 0 | F174: 2.290710211 | G174: 1 | H174: 1
A175: Jan 8, 05:00 am | B175: 6 | C175: 0 | D175: -2.554978848 | E175: 0 | F175: 2.554978848 | G175: 1 | H175: 1
A176: Jan 8, 06:00 am | B176: 7 | C176: 0 | D176: -2.724054813 | E176: 0 | F176: 2.724054813 | G176: 1 | H176: 1
A177: Jan 8, 07:00 am | B177: 8 | C177: 0 | D177: -2.565913916 | E177: 0 | F177: 2.565913916 | G177: 1 | H177: 1
A178: Jan 8, 08:00 am | B178: 9 | C178: 0.7754738104 | D178: -1.606009506 | E178: 0.7754738104 | F178: 2.381483316 | G178: 2 | H178: 1
A179: Jan 8, 09:00 am | B179: 10 | C179: 3.242011211 | D179: 0.7584334826 | E179: 2.483577728 | F179: 2.483577728 | G179: 2 | H179: 1
A180: Jan 8, 10:00 am | B180: 11 | C180: 6.676805128 | D180: 4.595599999 | E180: 2.08120513 | F180: 2.08120513 | G180: 2 | H180: 1
A181: Jan 8, 11:00 am | B181: 12 | C181: 6.678195295 | D181: 4.831425843 | E181: 1.846769452 | F181: 1.846769452 | G181: 2 | H181: 1
A182: Jan 8, 12:00 pm | B182: 13 | C182: 6.944824192 | D182: 5.060711595 | E182: 1.884112597 | F182: 1.884112597 | G182: 2 | H182: 1
A183: Jan 8, 01:00 pm | B183: 14 | C183: 6.67721703 | D183: 4.886636042 | E183: 1.790580988 | F183: 1.790580988 | G183: 2 | H183: 1
A184: Jan 8, 02:00 pm | B184: 15 | C184: 5.782927699 | D184: 4.037349171 | E184: 1.745578527 | F184: 1.745578527 | G184: 2 | H184: 1
A185: Jan 8, 03:00 pm | B185: 16 | C185: 3.503388365 | D185: 1.580324968 | E185: 1.923063397 | F185: 1.923063397 | G185: 2 | H185: 1
A186: Jan 8, 04:00 pm | B186: 17 | C186: 2.546284077 | D186: 0.42280185 | E186: 2.123482227 | F186: 2.123482227 | G186: 2 | H186: 1
A187: Jan 8, 05:00 pm | B187: 18 | C187: 0 | D187: -2.115401268 | E187: 0 | F187: 2.115401268 | G187: 2 | H187: 1
A188: Jan 8, 06:00 pm | B188: 19 | C188: 0 | D188: -2.352033138 | E188: 0 | F188: 2.352033138 | G188: 1 | H188: 1
A189: Jan 8, 07:00 pm | B189: 20 | C189: 0 | D189: -2.494365454 | E189: 0 | F189: 2.494365454 | G189: 1 | H189: 1
A190: Jan 8, 08:00 pm | B190: 21 | C190: 0 | D190: -2.598283529 | E190: 0 | F190: 2.598283529 | G190: 1 | H190: 1
A191: Jan 8, 09:00 pm | B191: 22 | C191: 0 | D191: -2.614861488 | E191: 0 | F191: 2.614861488 | G191: 1 | H191: 1
A192: Jan 8, 10:00 pm | B192: 23 | C192: 0 | D192: -2.474135876 | E192: 0 | F192: 2.474135876 | G192: 1 | H192: 1
A193: Jan 8, 11:00 pm | B193: 24 | C193: 0 | D193: -2.307770729 | E193: 0 | F193: 2.307770729 | G193: 1 | H193: 1
A194: Jan 9, 12:00 am | B194: 1 | C194: 0 | D194: -2.46988821 | E194: 0 | F194: 2.46988821 | G194: =IF(AND(B194>8,B194<19),2,1) -> 1 | H194: 1
A195: Jan 9, 01:00 am | B195: 2 | C195: 0 | D195: =C195-F195 -> -2.582261801 | E195: =IF(C195<F195,C195,F195) -> 0 | F195: 2.582261801 | G195: 1 | H195: 1
A196: Jan 9, 02:00 am | B196: 3 | C196: 0 | D196: -2.483603001 | E196: 0 | F196: 2.483603001 | G196: 1 | H196: 1
A197: Jan 9, 03:00 am | B197: 4 | C197: 0 | D197: -2.664297342 | E197: 0 | F197: 2.664297342 | G197: 1 | H197: 1
A198: Jan 9, 04:00 am | B198: 5 | C198: 0 | D198: -2.619532108 | E198: 0 | F198: 2.619532108 | G198: 1 | H198: 1
A199: Jan 9, 05:00 am | B199: 6 | C199: 0 | D199: -3.071879864 | E199: 0 | F199: 3.071879864 | G199: 1 | H199: 1
A200: Jan 9, 06:00 am | B200: 7 | C200: 0 | D200: -3.272444725 | E200: 0 | F200: 3.272444725 | G200: 1 | H200: 1
... 8561 more rows

Sheet SAM_KY_100_Offset
A1: Time stamp | B1: Hour Ending | C1: Electricity to/from grid (year 1 hourly) | (kWh) | D1: Electricity from system to load (year 1 hourly) | (kWh) | E1: System power generated | (kW) | F1: Bill load (year 1) | (kWh) | G1: Time Period | H1: Month
A2: Jan 1, 12:00 am | B2: 1 | C2: -0.801803 | D2: 0 | E2: 0 | F2: 0.801803 | G2: =IF(AND(B2>8,B2<19),2,1) -> 1 | H2: 1 | K2: kWh | L2: %
A3: Jan 1, 01:00 am | B3: 2 | C3: -0.706284 | D3: 0 | E3: 0 | F3: 0.706284 | G3: 1 | H3: 1 | J3: Total Load | K3: =SUM(F:F) -> 11238.68424 | L3: =K3/K$3 -> 1
A4: Jan 1, 02:00 am | B4: 3 | C4: -0.672472 | D4: 0 | E4: 0 | F4: 0.672472 | G4: 1 | H4: 1 | J4: Total On-Site | K4: =SUM(D:D) -> 4717.232227 | L4: =K4/K$3 -> 0.4197317164
A5: Jan 1, 03:00 am | B5: 4 | C5: -0.663956 | D5: 0 | E5: 0 | F5: 0.663956 | G5: 1 | H5: 1 | J5: Total Export | K5: =SUMIF(C:C,">0",C:C) -> 6520.851725 | L5: 0.5802148707
A6: Jan 1, 04:00 am | B6: 5 | C6: -0.671767 | D6: 0 | E6: 0 | F6: 0.671767 | G6: 1 | H6: 1 | J6: Total Prod | K6: =K4+K5 -> 11238.08395 | L6: 0.9999465871
A7: Jan 1, 05:00 am | B7: 6 | C7: -0.72768 | D7: 0 | E7: 0 | F7: 0.72768 | G7: 1 | H7: 1
A8: Jan 1, 06:00 am | B8: 7 | C8: -0.932425 | D8: 0 | E8: 0 | F8: 0.932425 | G8: 1 | H8: 1 | N8: Retail Rate | O8: 0.0981
A9: Jan 1, 07:00 am | B9: 8 | C9: -1.22584 | D9: 0 | E9: 0 | F9: 1.22584 | G9: 1 | H9: 1 | J9: Period 1 | K9: 6 PM - 8 AM | N9: Avoided Cost | O9: 0.03659
A10: Jan 1, 08:00 am | B10: 9 | C10: -0.832201 | D10: 0.339465 | E10: 0.339465 | F10: 1.17167 | G10: 2 | H10: 1 | J10: Period 2 | K10: 8 AM - 6 PM
A11: Jan 1, 09:00 am | B11: 10 | C11: -0.104495 | D11: 0.91266 | E11: 0.91266 | F11: 1.01716 | G11: 2 | H11: 1
A12: Jan 1, 10:00 am | B12: 11 | C12: 0.351742 | D12: 1.01169 | E12: 1.36343 | F12: 1.01169 | G12: 2 | H12: 1 | J12: Period 1 Export | K12: =SUMIFS(C:C,C:C,">0",G:G,1) -> 77.70821958
A13: Jan 1, 11:00 am | B13: 12 | C13: 0.495054 | D13: 0.97432 | E13: 1.46937 | F13: 0.97432 | G13: 2 | H13: 1 | J13: Period 2 Export | K13: =SUMIFS(C:C,C:C,">0",G:G,2) -> 6443.143506 | M13: Month | N13: Period 1 Exp | O13: Period 1 On-Site | P13: Period 1 Import | Q13: Period 2 Exp | R13: Period 2 On-Site | S13: Period 2 Import | T13: Total Net Monthly Exports | V13: Total Use
A14: Jan 1, 12:00 pm | B14: 13 | C14: 0.48924 | D14: 0.932349 | E14: 1.42159 | F14: 0.932349 | G14: 2 | H14: 1 | J14: Total Export | K14: =K12+K13 -> 6520.851725 | M14: 1 | N14: =SUMIFS(C:C,C:C,">0",G:G,1,H:H,$M14) -> 0 | O14: =SUMIFS(D:D,G:G,1,H:H,M14) -> 0 | P14: =SUMIFS(C:C,C:C,"<0",G:G,1,H:H,M14) -> -469.537543 | Q14: =SUMIFS(C:C,C:C,">0",G:G,2,H:H,M14) -> 431.8383599 | R14: =SUMIFS(D:D,G:G,2,H:H,M14) -> 210.6916658 | S14: =SUMIFS(C:C,C:C,"<0",G:G,2,H:H,M14) -> -100.3891797 | T14: =(N14+Q14)+(P14+S14) -> -138.0883628 | V14: =SUMIF(H:H,M14,F:F) -> 780.618377
A15: Jan 1, 01:00 pm | B15: 14 | C15: 1.53712 | D15: 0.890429 | E15: 2.42755 | F15: 0.890429 | G15: 2 | H15: 1 | M15: 2 | N15: 0 | O15: 0.2096596 | P15: -405.622085 | Q15: 519.5613927 | R15: 204.8207689 | S15: -56.0111914 | T15: =(N15+Q15)+(P15+S15) -> 57.92811628 | V15: 666.663681
A16: Jan 1, 02:00 pm | B16: 15 | C16: 0.326814 | D16: 0.881653 | E16: 1.20847 | F16: 0.881653 | G16: 2 | H16: 1 | M16: 3 | N16: 1.34974758 | O16: 17.4651878 | P16: -389.9876338 | Q16: 693.3776563 | R16: 237.1617395 | S16: -27.625376 | T16: 277.1143941 | V16: 672.23995
A17: Jan 1, 03:00 pm | B17: 16 | C17: -0.0806259 | D17: 0.863811 | E17: 0.863811 | F17: 0.944437 | G17: 2 | H17: 1 | J17: Period 1 On-Site | K17: =SUMIF(G:G,1,D:D) -> 308.15731 | M17: 4 | N17: 11.511683 | O17: 28.49679792 | P17: -345.4082609 | Q17: 777.7611854 | R17: 268.0649861 | S17: -26.1241015 | T17: 417.740506 | V17: 668.094182
A18: Jan 1, 04:00 pm | B18: 17 | C18: 0.221097 | D18: 1.19301 | E18: 1.41411 | F18: 1.19301 | G18: 2 | H18: 1 | J18: Period 2 On-Site | K18: =SUMIF(G:G,2,D:D) -> 4409.074917 | M18: 5 | N18: 23.7004993 | O18: 46.9827013 | P18: -361.71178 | Q18: 724.5584267 | R18: 369.9442785 | S18: -27.962749 | T18: 358.584397 | V18: 806.601525
A19: Jan 1, 05:00 pm | B19: 18 | C19: -1.66177 | D19: 0 | E19: 0 | F19: 1.66177 | G19: 2 | H19: 1 | J19: Total | K19: =K17+K18 -> 4717.232227 | M19: 6 | N19: 18.588495 | O19: 56.48597084 | P19: -468.0044406 | Q19: 556.0819926 | R19: 572.761658 | S19: -97.9772079 | T19: 8.6888391 | V19: 1195.229233
A20: Jan 1, 06:00 pm | B20: 19 | C20: -1.92415 | D20: 0 | E20: 0 | F20: 1.92415 | G20: 1 | H20: 1 | M20: 7 | N20: 7.9025706 | O20: 62.46120527 | P20: -683.7171445 | Q20: 347.7530893 | R20: 726.976587 | S20: -181.9072856 | T20: -509.9687703 | V20: 1655.062119
A21: Jan 1, 07:00 pm | B21: 20 | C21: -1.88496 | D21: 0 | E21: 0 | F21: 1.88496 | G21: 1 | H21: 1 | M21: 8 | N21: 4.8756616 | O21: 47.5126984 | P21: -629.6500305 | Q21: 445.7461478 | R21: 636.0405 | S21: -132.8267867 | T21: -311.8550078 | V21: 1446.030003
A22: Jan 1, 08:00 pm | B22: 21 | C22: -1.7645 | D22: 0 | E22: 0 | F22: 1.7645 | G22: 1 | H22: 1 | J22: Period 1 Load | K22: =SUMIF(G:G,1,F:F) -> 5793.847746 | M22: 9 | N22: 6.3636276 | O22: 26.5657243 | P22: -476.654414 | Q22: 530.2130621 | R22: 460.856054 | S22: -90.49069544 | T22: -30.56841974 | V22: 1054.566808
A23: Jan 1, 09:00 pm | B23: 22 | C23: -1.63288 | D23: 0 | E23: 0 | F23: 1.63288 | G23: 1 | H23: 1 | J23: Period 2 Load | K23: =SUMIF(G:G,2,F:F) -> 5444.836497 | M23: 10 | N23: 3.4159349 | O23: 17.48782761 | P23: -413.8179324 | Q23: 532.0409894 | R23: 328.8042048 | S23: -109.4075657 | T23: 12.23142626 | V23: 869.517552
A24: Jan 1, 10:00 pm | B24: 23 | C24: -1.35604 | D24: 0 | E24: 0 | F24: 1.35604 | G24: 1 | H24: 1 | J24: Total | K24: =K22+K23 -> 11238.68424 | M24: 11 | N24: 0 | O24: 4.48953694 | P24: -388.0891911 | Q24: 490.6097889 | R24: 193.630411 | S24: -78.37588664 | T24: 24.14471114 | V24: 664.585068
A25: Jan 1, 11:00 pm | B25: 24 | C25: -1.07957 | D25: 0 | E25: 0 | F25: 1.07957 | G25: 1 | H25: 1 | M25: 12 | N25: 0 | O25: 0 | P25: -453.490006 | Q25: 393.6014146 | R25: 199.3220632 | S25: -106.6636857 | T25: -166.5522771 | V25: 759.475745
A26: Jan 2, 12:00 am | B26: 1 | C26: -0.79505 | D26: 0 | E26: 0 | F26: 0.79505 | G26: 1 | H26: 1 | M26: Total | N26: =SUM(N14:N25) -> 77.70821958 | O26: =SUM(O14:O25) -> 308.15731 | P26: -5485.690462 | Q26: 6443.143506 | R26: =SUM(R14:R25) -> 4409.074917 | S26: =SUM(S14:S25) -> -1035.761711 | T26: =SUMIF(T14:T25,">0",T14:T25) -> 1156.43239 | V26: =SUM(V14:V25) -> 11238.68424
A27: Jan 2, 01:00 am | B27: 2 | C27: -0.693259 | D27: 0 | E27: 0 | F27: 0.693259 | G27: 1 | H27: 1
A28: Jan 2, 02:00 am | B28: 3 | C28: -0.662299 | D28: 0 | E28: 0 | F28: 0.662299 | G28: 1 | H28: 1 | O28: P 1 Retail Exports | P28: =IF(N26<(-P26),N26, 0) -> 77.70821958 | R28: P 1 Retail Exports | S28: =IF(Q26<(-S26),Q26, -S26) -> 1035.761711
A29: Jan 2, 03:00 am | B29: 4 | C29: -0.655519 | D29: 0 | E29: 0 | F29: 0.655519 | G29: 1 | H29: 1 | O29: Remainder | P29: =P28-N26 -> 0 | R29: Remainder | S29: =Q26+S26 -> 5407.381794
A30: Jan 2, 04:00 am | B30: 5 | C30: -0.65456 | D30: 0 | E30: 0 | F30: 0.65456 | G30: 1 | H30: 1 | L30: Rate | M30: Value
A31: Jan 2, 05:00 am | B31: 6 | C31: -0.706284 | D31: 0 | E31: 0 | F31: 0.706284 | G31: 1 | H31: 1 | J31: Retail Rate kWh | K31: =O26+R26+P28+S28 -> 5830.702158 | L31: =O8 -> 0.0981 | M31: =K31*L31 -> 571.9918817
A32: Jan 2, 06:00 am | B32: 7 | C32: -0.901007 | D32: 0 | E32: 0 | F32: 0.901007 | G32: 1 | H32: 1 | J32: Avoided Cost kWh | K32: =S29 -> 5407.381794 | L32: =O9 -> 0.03659 | M32: =K32*L32 -> 197.8560999 | O32: Average Value
A33: Jan 2, 07:00 am | B33: 8 | C33: -1.18908 | D33: 0 | E33: 0 | F33: 1.18908 | G33: 1 | H33: 1 | L33: Total | M33: =SUM(M31:M32) -> 769.8479815 | N33: =M33/M35 -> 0.6983026593 | O33: =M33/(K31+K32) -> 0.06850349088
A34: Jan 2, 08:00 am | B34: 9 | C34: -0.959147 | D34: 0.157931 | E34: 0.157931 | F34: 1.11708 | G34: 2 | H34: 1
A35: Jan 2, 09:00 am | B35: 10 | C35: -0.58342 | D35: 0.365754 | E35: 0.365754 | F35: 0.949174 | G35: 2 | H35: 1 | J35: Full Retail | K35: =K31+K32 -> 11238.08395 | L35: =L31 -> 0.0981 | M35: =K35*L35 -> 1102.456036
A36: Jan 2, 10:00 am | B36: 11 | C36: -0.164543 | D36: 0.7795 | E36: 0.7795 | F36: 0.944043 | G36: 2 | H36: 1
A37: Jan 2, 11:00 am | B37: 12 | C37: -0.290821 | D37: 0.634713 | E37: 0.634713 | F37: 0.925534 | G37: 2 | H37: 1
A38: Jan 2, 12:00 pm | B38: 13 | C38: -0.513408 | D38: 0.380504 | E38: 0.380504 | F38: 0.893912 | G38: 2 | H38: 1 | J38: Avoided Cost All Exports | L38: Rate | M38: Value
A39: Jan 2, 01:00 pm | B39: 14 | C39: -0.596376 | D39: 0.259652 | E39: 0.259652 | F39: 0.856028 | G39: 2 | H39: 1 | J39: Retail Offset | K39: =O26+R26 -> 4717.232227 | L39: =O8 -> 0.0981 | M39: =K39*L39 -> 462.7604815
A40: Jan 2, 02:00 pm | B40: 15 | C40: -0.461653 | D40: 0.390277 | E40: 0.390277 | F40: 0.85193 | G40: 2 | H40: 1 | J40: Exports | K40: =K14 -> 6520.851725 | L40: =O9 -> 0.03659 | M40: =K40*L40 -> 238.5979646
A41: Jan 2, 03:00 pm | B41: 16 | C41: -0.365062 | D41: 0.551962 | E41: 0.551962 | F41: 0.917024 | G41: 2 | H41: 1 | M41: =SUM(M39:M40) -> 701.3584461 | N41: =M41/M35 -> 0.6361781544
A42: Jan 2, 04:00 pm | B42: 17 | C42: -0.982876 | D42: 0.176845 | E42: 0.176845 | F42: 1.15972 | G42: 2 | H42: 1
A43: Jan 2, 05:00 pm | B43: 18 | C43: -1.61996 | D43: 0 | E43: 0 | F43: 1.61996 | G43: 2 | H43: 1 | J43: Monthly Avoided Cost | L43: Rate | M43: Value
A44: Jan 2, 06:00 pm | B44: 19 | C44: -1.88343 | D44: 0 | E44: 0 | F44: 1.88343 | G44: 1 | H44: 1 | J44: Retail Offset | K44: =K6-K45 -> 10081.65156 | L44: =L39 -> 0.0981 | M44: =K44*L44 -> 989.0100183
A45: Jan 2, 07:00 pm | B45: 20 | C45: -1.83667 | D45: 0 | E45: 0 | F45: 1.83667 | G45: 1 | H45: 1 | J45: Exports | K45: =T26 -> 1156.43239 | L45: =L40 -> 0.03659 | M45: =K45*L45 -> 42.31386115
A46: Jan 2, 08:00 pm | B46: 21 | C46: -1.7118 | D46: 0 | E46: 0 | F46: 1.7118 | G46: 1 | H46: 1 | M46: =SUM(M44:M45) -> 1031.323879 | N46: =M46/M35 -> 0.9354784644
A47: Jan 2, 09:00 pm | B47: 22 | C47: -1.57311 | D47: 0 | E47: 0 | F47: 1.57311 | G47: 1 | H47: 1
A48: Jan 2, 10:00 pm | B48: 23 | C48: -1.29676 | D48: 0 | E48: 0 | F48: 1.29676 | G48: 1 | H48: 1
A49: Jan 2, 11:00 pm | B49: 24 | C49: -1.02701 | D49: 0 | E49: 0 | F49: 1.02701 | G49: 1 | H49: 1
A50: Jan 3, 12:00 am | B50: 1 | C50: -0.756447 | D50: 0 | E50: 0 | F50: 0.756447 | G50: 1 | H50: 1
A51: Jan 3, 01:00 am | B51: 2 | C51: -0.651464 | D51: 0 | E51: 0 | F51: 0.651464 | G51: 1 | H51: 1
A52: Jan 3, 02:00 am | B52: 3 | C52: -0.613389 | D52: 0 | E52: 0 | F52: 0.613389 | G52: 1 | H52: 1
A53: Jan 3, 03:00 am | B53: 4 | C53: -0.604521 | D53: 0 | E53: 0 | F53: 0.604521 | G53: 1 | H53: 1
A54: Jan 3, 04:00 am | B54: 5 | C54: -0.607269 | D54: 0 | E54: 0 | F54: 0.607269 | G54: 1 | H54: 1
A55: Jan 3, 05:00 am | B55: 6 | C55: -0.663933 | D55: 0 | E55: 0 | F55: 0.663933 | G55: 1 | H55: 1
A56: Jan 3, 06:00 am | B56: 7 | C56: -0.858593 | D56: 0 | E56: 0 | F56: 0.858593 | G56: 1 | H56: 1
A57: Jan 3, 07:00 am | B57: 8 | C57: -1.1523 | D57: 0 | E57: 0 | F57: 1.1523 | G57: 1 | H57: 1
A58: Jan 3, 08:00 am | B58: 9 | C58: -1.09008 | D58: 0 | E58: 0 | F58: 1.09008 | G58: 2 | H58: 1
A59: Jan 3, 09:00 am | B59: 10 | C59: -0.265677 | D59: 0.670292 | E59: 0.670292 | F59: 0.935969 | G59: 2 | H59: 1
A60: Jan 3, 10:00 am | B60: 11 | C60: -0.38528 | D60: 0.565783 | E60: 0.565783 | F60: 0.951064 | G60: 2 | H60: 1
A61: Jan 3, 11:00 am | B61: 12 | C61: -0.0204525 | D61: 0.920018 | E61: 0.920018 | F61: 0.940471 | G61: 2 | H61: 1
A62: Jan 3, 12:00 pm | B62: 13 | C62: 0.475166 | D62: 0.911148 | E62: 1.38631 | F62: 0.911148 | G62: 2 | H62: 1
A63: Jan 3, 01:00 pm | B63: 14 | C63: 0.990816 | D63: 0.880654 | E63: 1.87147 | F63: 0.880654 | G63: 2 | H63: 1
A64: Jan 3, 02:00 pm | B64: 15 | C64: -0.212962 | D64: 0.663463 | E64: 0.663463 | F64: 0.876424 | G64: 2 | H64: 1
A65: Jan 3, 03:00 pm | B65: 16 | C65: -0.118103 | D65: 0.820333 | E65: 0.820333 | F65: 0.938436 | G65: 2 | H65: 1
A66: Jan 3, 04:00 pm | B66: 17 | C66: -1.01352 | D66: 0.163064 | E66: 0.163064 | F66: 1.17658 | G66: =IF(AND(B66>8,B66<19),2,1) -> 2 | H66: 1
A67: Jan 3, 05:00 pm | B67: 18 | C67: -1.63608 | D67: 0 | E67: 0 | F67: 1.63608 | G67: 2 | H67: 1
A68: Jan 3, 06:00 pm | B68: 19 | C68: -1.89723 | D68: 0 | E68: 0 | F68: 1.89723 | G68: 1 | H68: 1
A69: Jan 3, 07:00 pm | B69: 20 | C69: -1.84356 | D69: 0 | E69: 0 | F69: 1.84356 | G69: 1 | H69: 1
A70: Jan 3, 08:00 pm | B70: 21 | C70: -1.71568 | D70: 0 | E70: 0 | F70: 1.71568 | G70: 1 | H70: 1
A71: Jan 3, 09:00 pm | B71: 22 | C71: -1.57773 | D71: 0 | E71: 0 | F71: 1.57773 | G71: 1 | H71: 1
A72: Jan 3, 10:00 pm | B72: 23 | C72: -1.29844 | D72: 0 | E72: 0 | F72: 1.29844 | G72: 1 | H72: 1
A73: Jan 3, 11:00 pm | B73: 24 | C73: -1.02393 | D73: 0 | E73: 0 | F73: 1.02393 | G73: 1 | H73: 1
A74: Jan 4, 12:00 am | B74: 1 | C74: -0.751922 | D74: 0 | E74: 0 | F74: 0.751922 | G74: 1 | H74: 1
A75: Jan 4, 01:00 am | B75: 2 | C75: -0.645336 | D75: 0 | E75: 0 | F75: 0.645336 | G75: 1 | H75: 1
A76: Jan 4, 02:00 am | B76: 3 | C76: -0.60843 | D76: 0 | E76: 0 | F76: 0.60843 | G76: 1 | H76: 1
A77: Jan 4, 03:00 am | B77: 4 | C77: -0.600506 | D77: 0 | E77: 0 | F77: 0.600506 | G77: 1 | H77: 1
A78: Jan 4, 04:00 am | B78: 5 | C78: -0.602231 | D78: 0 | E78: 0 | F78: 0.602231 | G78: 1 | H78: 1
A79: Jan 4, 05:00 am | B79: 6 | C79: -0.657434 | D79: 0 | E79: 0 | F79: 0.657434 | G79: 1 | H79: 1
A80: Jan 4, 06:00 am | B80: 7 | C80: -0.854535 | D80: 0 | E80: 0 | F80: 0.854535 | G80: 1 | H80: 1
A81: Jan 4, 07:00 am | B81: 8 | C81: -1.14867 | D81: 0 | E81: 0 | F81: 1.14867 | G81: 1 | H81: 1
A82: Jan 4, 08:00 am | B82: 9 | C82: -1.01183 | D82: 0.0766713 | E82: 0.0766713 | F82: 1.0885 | G82: 2 | H82: 1
A83: Jan 4, 09:00 am | B83: 10 | C83: -0.615357 | D83: 0.321477 | E83: 0.321477 | F83: 0.936835 | G83: 2 | H83: 1
A84: Jan 4, 10:00 am | B84: 11 | C84: -0.500497 | D84: 0.445608 | E84: 0.445608 | F84: 0.946105 | G84: 2 | H84: 1
A85: Jan 4, 11:00 am | B85: 12 | C85: -0.351855 | D85: 0.578489 | E85: 0.578489 | F85: 0.930344 | G85: 2 | H85: 1
A86: Jan 4, 12:00 pm | B86: 13 | C86: 0.346813 | D86: 0.884738 | E86: 1.23155 | F86: 0.884738 | G86: 2 | H86: 1
A87: Jan 4, 01:00 pm | B87: 14 | C87: 0.160759 | D87: 0.845262 | E87: 1.00602 | F87: 0.845262 | G87: 2 | H87: 1
A88: Jan 4, 02:00 pm | B88: 15 | C88: 0.662033 | D88: 0.841825 | E88: 1.50386 | F88: 0.841825 | G88: 2 | H88: 1
A89: Jan 4, 03:00 pm | B89: 16 | C89: -0.0287752 | D89: 0.879202 | E89: 0.879202 | F89: 0.907977 | G89: 2 | H89: 1
A90: Jan 4, 04:00 pm | B90: 17 | C90: -0.841426 | D90: 0.309857 | E90: 0.309857 | F90: 1.15128 | G90: 2 | H90: 1
A91: Jan 4, 05:00 pm | B91: 18 | C91: -1.60453 | D91: 0 | E91: 0 | F91: 1.60453 | G91: 2 | H91: 1
A92: Jan 4, 06:00 pm | B92: 19 | C92: -1.87306 | D92: 0 | E92: 0 | F92: 1.87306 | G92: 1 | H92: 1
A93: Jan 4, 07:00 pm | B93: 20 | C93: -1.82159 | D93: 0 | E93: 0 | F93: 1.82159 | G93: 1 | H93: 1
A94: Jan 4, 08:00 pm | B94: 21 | C94: -1.69485 | D94: 0 | E94: 0 | F94: 1.69485 | G94: 1 | H94: 1
A95: Jan 4, 09:00 pm | B95: 22 | C95: -1.55841 | D95: 0 | E95: 0 | F95: 1.55841 | G95: 1 | H95: 1
A96: Jan 4, 10:00 pm | B96: 23 | C96: -1.28144 | D96: 0 | E96: 0 | F96: 1.28144 | G96: 1 | H96: 1
A97: Jan 4, 11:00 pm | B97: 24 | C97: -1.00792 | D97: 0 | E97: 0 | F97: 1.00792 | G97: 1 | H97: 1
A98: Jan 5, 12:00 am | B98: 1 | C98: -0.737251 | D98: 0 | E98: 0 | F98: 0.737251 | G98: 1 | H98: 1
A99: Jan 5, 01:00 am | B99: 2 | C99: -0.631865 | D99: 0 | E99: 0 | F99: 0.631865 | G99: 1 | H99: 1
A100: Jan 5, 02:00 am | B100: 3 | C100: -0.594006 | D100: 0 | E100: 0 | F100: 0.594006 | G100: 1 | H100: 1
A101: Jan 5, 03:00 am | B101: 4 | C101: -0.584695 | D101: 0 | E101: 0 | F101: 0.584695 | G101: 1 | H101: 1
A102: Jan 5, 04:00 am | B102: 5 | C102: -0.586336 | D102: 0 | E102: 0 | F102: 0.586336 | G102: 1 | H102: 1
A103: Jan 5, 05:00 am | B103: 6 | C103: -0.639141 | D103: 0 | E103: 0 | F103: 0.639141 | G103: 1 | H103: 1
A104: Jan 5, 06:00 am | B104: 7 | C104: -0.837958 | D104: 0 | E104: 0 | F104: 0.837958 | G104: 1 | H104: 1
A105: Jan 5, 07:00 am | B105: 8 | C105: -1.16639 | D105: 0 | E105: 0 | F105: 1.16639 | G105: 1 | H105: 1
A106: Jan 5, 08:00 am | B106: 9 | C106: 0.345965 | D106: 1.08469 | E106: 1.43065 | F106: 1.08469 | G106: 2 | H106: 1
A107: Jan 5, 09:00 am | B107: 10 | C107: 2.5522 | D107: 0.932187 | E107: 3.48438 | F107: 0.932187 | G107: 2 | H107: 1
A108: Jan 5, 10:00 am | B108: 11 | C108: 3.92188 | D108: 0.917856 | E108: 4.83974 | F108: 0.917856 | G108: 2 | H108: 1
A109: Jan 5, 11:00 am | B109: 12 | C109: 4.67699 | D109: 0.918517 | E109: 5.59551 | F109: 0.918517 | G109: 2 | H109: 1
A110: Jan 5, 12:00 pm | B110: 13 | C110: 4.94844 | D110: 0.893496 | E110: 5.84194 | F110: 0.893496 | G110: 2 | H110: 1
A111: Jan 5, 01:00 pm | B111: 14 | C111: 4.7427 | D111: 0.873828 | E111: 5.61653 | F111: 0.873828 | G111: 2 | H111: 1
A112: Jan 5, 02:00 pm | B112: 15 | C112: 4.02865 | D112: 0.869849 | E112: 4.8985 | F112: 0.869849 | G112: 2 | H112: 1
A113: Jan 5, 03:00 pm | B113: 16 | C113: 2.71474 | D113: 0.930126 | E113: 3.64487 | F113: 0.930126 | G113: 2 | H113: 1
A114: Jan 5, 04:00 pm | B114: 17 | C114: 0.601729 | D114: 1.17079 | E114: 1.77252 | F114: 1.17079 | G114: 2 | H114: 1
A115: Jan 5, 05:00 pm | B115: 18 | C115: -1.63411 | D115: 0 | E115: 0 | F115: 1.63411 | G115: 2 | H115: 1
A116: Jan 5, 06:00 pm | B116: 19 | C116: -1.89605 | D116: 0 | E116: 0 | F116: 1.89605 | G116: 1 | H116: 1
A117: Jan 5, 07:00 pm | B117: 20 | C117: -1.83659 | D117: 0 | E117: 0 | F117: 1.83659 | G117: 1 | H117: 1
A118: Jan 5, 08:00 pm | B118: 21 | C118: -1.7054 | D118: 0 | E118: 0 | F118: 1.7054 | G118: 1 | H118: 1
A119: Jan 5, 09:00 pm | B119: 22 | C119: -1.5668 | D119: 0 | E119: 0 | F119: 1.5668 | G119: 1 | H119: 1
A120: Jan 5, 10:00 pm | B120: 23 | C120: -1.28705 | D120: 0 | E120: 0 | F120: 1.28705 | G120: 1 | H120: 1
A121: Jan 5, 11:00 pm | B121: 24 | C121: -1.01379 | D121: 0 | E121: 0 | F121: 1.01379 | G121: 1 | H121: 1
A122: Jan 6, 12:00 am | B122: 1 | C122: -0.743244 | D122: 0 | E122: 0 | F122: 0.743244 | G122: 1 | H122: 1
A123: Jan 6, 01:00 am | B123: 2 | C123: -0.632917 | D123: 0 | E123: 0 | F123: 0.632917 | G123: 1 | H123: 1
A124: Jan 6, 02:00 am | B124: 3 | C124: -0.597087 | D124: 0 | E124: 0 | F124: 0.597087 | G124: 1 | H124: 1
A125: Jan 6, 03:00 am | B125: 4 | C125: -0.593337 | D125: 0 | E125: 0 | F125: 0.593337 | G125: 1 | H125: 1
A126: Jan 6, 04:00 am | B126: 5 | C126: -0.599459 | D126: 0 | E126: 0 | F126: 0.599459 | G126: 1 | H126: 1
A127: Jan 6, 05:00 am | B127: 6 | C127: -0.656192 | D127: 0 | E127: 0 | F127: 0.656192 | G127: 1 | H127: 1
A128: Jan 6, 06:00 am | B128: 7 | C128: -0.890663 | D128: 0 | E128: 0 | F128: 0.890663 | G128: 1 | H128: 1
A129: Jan 6, 07:00 am | B129: 8 | C129: -1.15488 | D129: 0 | E129: 0 | F129: 1.15488 | G129: 1 | H129: 1
A130: Jan 6, 08:00 am | B130: 9 | C130: -0.74286 | D130: 0.323344 | E130: 0.323344 | F130: 1.0662 | G130: =IF(AND(B130>8,B130<19),2,1) -> 2 | H130: 1
A131: Jan 6, 09:00 am | B131: 10 | C131: -0.523537 | D131: 0.375066 | E131: 0.375066 | F131: 0.898603 | G131: 2 | H131: 1
A132: Jan 6, 10:00 am | B132: 11 | C132: -0.086573 | D132: 0.811846 | E132: 0.811846 | F132: 0.898419 | G132: 2 | H132: 1
A133: Jan 6, 11:00 am | B133: 12 | C133: 0.86707 | D133: 0.881908 | E133: 1.74898 | F133: 0.881908 | G133: 2 | H133: 1
A134: Jan 6, 12:00 pm | B134: 13 | C134: 0.553025 | D134: 0.845587 | E134: 1.39861 | F134: 0.845587 | G134: 2 | H134: 1
A135: Jan 6, 01:00 pm | B135: 14 | C135: 0.304499 | D135: 0.821975 | E135: 1.12647 | F135: 0.821975 | G135: 2 | H135: 1
A136: Jan 6, 02:00 pm | B136: 15 | C136: 0.33106 | D136: 0.822177 | E136: 1.15324 | F136: 0.822177 | G136: 2 | H136: 1
A137: Jan 6, 03:00 pm | B137: 16 | C137: -0.666827 | D137: 0.219959 | E137: 0.219959 | F137: 0.886786 | G137: 2 | H137: 1
A138: Jan 6, 04:00 pm | B138: 17 | C138: -1.12464 | D138: 0 | E138: 0 | F138: 1.12464 | G138: 2 | H138: 1
A139: Jan 6, 05:00 pm | B139: 18 | C139: -1.58234 | D139: 0 | E139: 0 | F139: 1.58234 | G139: 2 | H139: 1
A140: Jan 6, 06:00 pm | B140: 19 | C140: -1.85482 | D140: 0 | E140: 0 | F140: 1.85482 | G140: 1 | H140: 1
A141: Jan 6, 07:00 pm | B141: 20 | C141: -1.81245 | D141: 0 | E141: 0 | F141: 1.81245 | G141: 1 | H141: 1
A142: Jan 6, 08:00 pm | B142: 21 | C142: -1.69102 | D142: 0 | E142: 0 | F142: 1.69102 | G142: 1 | H142: 1
A143: Jan 6, 09:00 pm | B143: 22 | C143: -1.55626 | D143: 0 | E143: 0 | F143: 1.55626 | G143: 1 | H143: 1
A144: Jan 6, 10:00 pm | B144: 23 | C144: -1.28675 | D144: 0 | E144: 0 | F144: 1.28675 | G144: 1 | H144: 1
A145: Jan 6, 11:00 pm | B145: 24 | C145: -1.01706 | D145: 0 | E145: 0 | F145: 1.01706 | G145: 1 | H145: 1
A146: Jan 7, 12:00 am | B146: 1 | C146: -0.763039 | D146: 0 | E146: 0 | F146: 0.763039 | G146: 1 | H146: 1
A147: Jan 7, 01:00 am | B147: 2 | C147: -0.655663 | D147: 0 | E147: 0 | F147: 0.655663 | G147: 1 | H147: 1
A148: Jan 7, 02:00 am | B148: 3 | C148: -0.617439 | D148: 0 | E148: 0 | F148: 0.617439 | G148: 1 | H148: 1
A149: Jan 7, 03:00 am | B149: 4 | C149: -0.611868 | D149: 0 | E149: 0 | F149: 0.611868 | G149: 1 | H149: 1
A150: Jan 7, 04:00 am | B150: 5 | C150: -0.614635 | D150: 0 | E150: 0 | F150: 0.614635 | G150: 1 | H150: 1
A151: Jan 7, 05:00 am | B151: 6 | C151: -0.669819 | D151: 0 | E151: 0 | F151: 0.669819 | G151: 1 | H151: 1
A152: Jan 7, 06:00 am | B152: 7 | C152: -0.905591 | D152: 0 | E152: 0 | F152: 0.905591 | G152: 1 | H152: 1
A153: Jan 7, 07:00 am | B153: 8 | C153: -1.1843 | D153: 0 | E153: 0 | F153: 1.1843 | G153: 1 | H153: 1
A154: Jan 7, 08:00 am | B154: 9 | C154: -1.07593 | D154: 0.0414697 | E154: 0.0414697 | F154: 1.1174 | G154: 2 | H154: 1
A155: Jan 7, 09:00 am | B155: 10 | C155: -0.736739 | D155: 0.218875 | E155: 0.218875 | F155: 0.955615 | G155: 2 | H155: 1
A156: Jan 7, 10:00 am | B156: 11 | C156: -0.435064 | D156: 0.516634 | E156: 0.516634 | F156: 0.951698 | G156: 2 | H156: 1
A157: Jan 7, 11:00 am | B157: 12 | C157: -0.399892 | D157: 0.527605 | E157: 0.527605 | F157: 0.927496 | G157: 2 | H157: 1
A158: Jan 7, 12:00 pm | B158: 13 | C158: 2.36868 | D158: 0.895205 | E158: 3.26388 | F158: 0.895205 | G158: 2 | H158: 1
A159: Jan 7, 01:00 pm | B159: 14 | C159: 2.68254 | D159: 0.867211 | E159: 3.54975 | F159: 0.867211 | G159: 2 | H159: 1
A160: Jan 7, 02:00 pm | B160: 15 | C160: 2.15908 | D160: 0.862782 | E160: 3.02186 | F160: 0.862782 | G160: 2 | H160: 1
A161: Jan 7, 03:00 pm | B161: 16 | C161: -0.519156 | D161: 0.406089 | E161: 0.406089 | F161: 0.925245 | G161: 2 | H161: 1
A162: Jan 7, 04:00 pm | B162: 17 | C162: -0.753751 | D162: 0.40816 | E162: 0.40816 | F162: 1.16191 | G162: 2 | H162: 1
A163: Jan 7, 05:00 pm | B163: 18 | C163: -1.61613 | D163: 0 | E163: 0 | F163: 1.61613 | G163: 2 | H163: 1
A164: Jan 7, 06:00 pm | B164: 19 | C164: -1.88116 | D164: 0 | E164: 0 | F164: 1.88116 | G164: 1 | H164: 1
A165: Jan 7, 07:00 pm | B165: 20 | C165: -1.84238 | D165: 0 | E165: 0 | F165: 1.84238 | G165: 1 | H165: 1
A166: Jan 7, 08:00 pm | B166: 21 | C166: -1.7238 | D166: 0 | E166: 0 | F166: 1.7238 | G166: 1 | H166: 1
A167: Jan 7, 09:00 pm | B167: 22 | C167: -1.59372 | D167: 0 | E167: 0 | F167: 1.59372 | G167: 1 | H167: 1
A168: Jan 7, 10:00 pm | B168: 23 | C168: -1.31488 | D168: 0 | E168: 0 | F168: 1.31488 | G168: 1 | H168: 1
A169: Jan 7, 11:00 pm | B169: 24 | C169: -1.02985 | D169: 0 | E169: 0 | F169: 1.02985 | G169: 1 | H169: 1
A170: Jan 8, 12:00 am | B170: 1 | C170: -0.751688 | D170: 0 | E170: 0 | F170: 0.751688 | G170: 1 | H170: 1
A171: Jan 8, 01:00 am | B171: 2 | C171: -0.644233 | D171: 0 | E171: 0 | F171: 0.644233 | G171: 1 | H171: 1
A172: Jan 8, 02:00 am | B172: 3 | C172: -0.609199 | D172: 0 | E172: 0 | F172: 0.609199 | G172: 1 | H172: 1
A173: Jan 8, 03:00 am | B173: 4 | C173: -0.604366 | D173: 0 | E173: 0 | F173: 0.604366 | G173: 1 | H173: 1
A174: Jan 8, 04:00 am | B174: 5 | C174: -0.600399 | D174: 0 | E174: 0 | F174: 0.600399 | G174: 1 | H174: 1
A175: Jan 8, 05:00 am | B175: 6 | C175: -0.654359 | D175: 0 | E175: 0 | F175: 0.654359 | G175: 1 | H175: 1
A176: Jan 8, 06:00 am | B176: 7 | C176: -0.880069 | D176: 0 | E176: 0 | F176: 0.880069 | G176: 1 | H176: 1
A177: Jan 8, 07:00 am | B177: 8 | C177: -1.15142 | D177: 0 | E177: 0 | F177: 1.15142 | G177: 1 | H177: 1
A178: Jan 8, 08:00 am | B178: 9 | C178: -0.473039 | D178: 0.602454 | E178: 0.602454 | F178: 1.07549 | G178: 2 | H178: 1
A179: Jan 8, 09:00 am | B179: 10 | C179: 1.5959 | D179: 0.922767 | E179: 2.51867 | F179: 0.922767 | G179: 2 | H179: 1
A180: Jan 8, 10:00 am | B180: 11 | C180: 4.25708 | D180: 0.930033 | E180: 5.18711 | F180: 0.930033 | G180: 2 | H180: 1
A181: Jan 8, 11:00 am | B181: 12 | C181: 4.26491 | D181: 0.92328 | E181: 5.18819 | F181: 0.92328 | G181: 2 | H181: 1
A182: Jan 8, 12:00 pm | B182: 13 | C182: 4.50012 | D182: 0.895205 | E182: 5.39533 | F182: 0.895205 | G182: 2 | H182: 1
A183: Jan 8, 01:00 pm | B183: 14 | C183: 4.32022 | D183: 0.867211 | E183: 5.18743 | F183: 0.867211 | G183: 2 | H183: 1
A184: Jan 8, 02:00 pm | B184: 15 | C184: 3.62989 | D184: 0.862782 | E184: 4.49267 | F184: 0.862782 | G184: 2 | H184: 1
A185: Jan 8, 03:00 pm | B185: 16 | C185: 1.79648 | D185: 0.925245 | E185: 2.72173 | F185: 0.925245 | G185: 2 | H185: 1
A186: Jan 8, 04:00 pm | B186: 17 | C186: 0.816263 | D186: 1.16191 | E186: 1.97817 | F186: 1.16191 | G186: 2 | H186: 1
A187: Jan 8, 05:00 pm | B187: 18 | C187: -1.61515 | D187: 0 | E187: 0 | F187: 1.61515 | G187: 2 | H187: 1
A188: Jan 8, 06:00 pm | B188: 19 | C188: -1.88137 | D188: 0 | E188: 0 | F188: 1.88137 | G188: 1 | H188: 1
A189: Jan 8, 07:00 pm | B189: 20 | C189: -1.83486 | D189: 0 | E189: 0 | F189: 1.83486 | G189: 1 | H189: 1
A190: Jan 8, 08:00 pm | B190: 21 | C190: -1.70907 | D190: 0 | E190: 0 | F190: 1.70907 | G190: 1 | H190: 1
A191: Jan 8, 09:00 pm | B191: 22 | C191: -1.5747 | D191: 0 | E191: 0 | F191: 1.5747 | G191: 1 | H191: 1
A192: Jan 8, 10:00 pm | B192: 23 | C192: -1.29677 | D192: 0 | E192: 0 | F192: 1.29677 | G192: 1 | H192: 1
A193: Jan 8, 11:00 pm | B193: 24 | C193: -1.01316 | D193: 0 | E193: 0 | F193: 1.01316 | G193: 1 | H193: 1
A194: Jan 9, 12:00 am | B194: 1 | C194: -0.733267 | D194: 0 | E194: 0 | F194: 0.733267 | G194: =IF(AND(B194>8,B194<19),2,1) -> 1 | H194: 1
A195: Jan 9, 01:00 am | B195: 2 | C195: -0.632684 | D195: 0 | E195: 0 | F195: 0.632684 | G195: 1 | H195: 1
A196: Jan 9, 02:00 am | B196: 3 | C196: -0.59616 | D196: 0 | E196: 0 | F196: 0.59616 | G196: 1 | H196: 1
A197: Jan 9, 03:00 am | B197: 4 | C197: -0.593074 | D197: 0 | E197: 0 | F197: 0.593074 | G197: 1 | H197: 1
A198: Jan 9, 04:00 am | B198: 5 | C198: -0.598008 | D198: 0 | E198: 0 | F198: 0.598008 | G198: 1 | H198: 1
A199: Jan 9, 05:00 am | B199: 6 | C199: -0.654342 | D199: 0 | E199: 0 | F199: 0.654342 | G199: 1 | H199: 1
A200: Jan 9, 06:00 am | B200: 7 | C200: -0.851612 | D200: 0 | E200: 0 | F200: 0.851612 | G200: 1 | H200: 1
... 8561 more rows
